Workbook

Sheet Instructions
G1: Aggregate: Sand and gravel Air emissions calculator
G2: p-sbap5-30 • 7/31/25
B4: Instructions
B5: 1) Begin with the first blue tab across the bottom to enter information for your business.
B6: 2) The green tab totals all potential and actual emissions from the information entered on the blue tabs.
B7: 3) The yellow 'Permits & Requirements' tab will help you decide which permit to apply for.
B8: 4) Later, you can use the blue tabs to calculate your actual emissions for the air emission inventory, a report due annually if you have an air permit.
B11: Color key
B12: Blue | C12: Enter information for your facility in the blue boxes.
B13: White | C13: Do not change the values/formulas in white boxes. White boxes contain intermediate calculations for determining emissions.
B14: Green | C14: Your emission totals are in green boxes. These are automatically calculated based on information entered in blue boxes.
B15: Yellow | C15: Permit and insignificant activity thresholds.
B16: Orange | C16: Orange boxes are filled with standard values. You may change them if you have test results that provide data specific to your site.
B17: Blue Text | C17: Important tips
B20: Assistance
B21: This calculator was created by the Minnesota Pollution Control Agency's (MPCA) Small Business Environmental Assistance Program (SBEAP).
B22: We provide free, confidential, environmental assistance to small businesses. For more information:
B23: Call: | C23: 651/282-6143 | E23: Email: | F23: smallbizhelp.pca@state.mn.us
C24: 800/657-3938
B26: Online at the MPCA's website: | G26: More information found on the MPCA's Aggregate - sand and gravel webpage:
B27: https://www.pca.state.mn.us/smallbizhelp | G27: https://www.pca.state.mn.us/regulations/aggregate-sand-and-gravel

Sheet Federal standards
B1: =Instructions!G2 -> p-sbap5-30 • 7/31/25
B2: U.S. Environmental Protection Agency (EPA) standards
B4: New source performance standards (NSPS) require new emission sources to be less polluting than older sources. | I4: National emission standards for hazardous air pollutants (NESHAP) prevent or reduce emissions that have health impacts.
B7: ▪ | C7: Each NSPS or NESHAP applies to specific equipment, processes, or industries.
B8: ▪ | C8: Multiple federal standards may apply to your business. It is possible that if you make a change at your business, a federal standard that did not previously apply now will, or the one you are already following may have additional requirements. A NESHAP can impose requirements on existing equipment without any changes at the facility.
B11: ▪ | C11: Federal standards can determine whether you need a permit and what requirements you must follow. You may have to follow federal standard requirements in addition to state permit requirements. Below are some of the common federal standards that affect aggregate mining and processing.
B15: New source performance standards (NSPS)
B16: Does the NSPS for nonmetallic mineral processors apply to you? | N16: Choose Y/N
B17: This standard applies to each crusher, grinding mill, screening operation, bucket elevator, belt conveyor, bagging operation, storage bin, enclosed truck or railcar loading station if: | N17: =IF($N$16="Yes","Because this NSPS applies to your operation, you need an air permit.",IF($N$16="No","Continue to the next question.",IF($N$16="Choose Y/N"," "," "))) -> 
B19: 1) | C19: your fixed plant is larger than 25 tons/hour or your portable plant is larger than 150 tons/hour, AND
B20: 2) | C20: your plant or equipment was constructed, reconstructed, or modified* after August 31, 1983.
B21: There are 18 nonmetallic minerals, including 'crushed and broken stone' and 'sand and gravel,' whose crusher, grinding mill, screens, bucket elevator, belt conveyor, bagging operation, storage bins, and truck loading stations are addressed by this regulation to reduce particulate matter air emissions. | N21: =IF(N16="Yes","Continue to the next question.",IF(N16="No","",IF(N16="Choose Y/N"," "))) -> 
D25: Resource | E25: EPA Rule information
D26: Regulation | E26: 40 CFR pt. 60, subp. OOO
B29: Does an NSPS for internal combustion engines apply to you? | N29: Choose Y/N
B30: The two NSPSs that apply to engines are: | N30: =IF(N29="Yes","You must follow NSPS requirements. Assess emissions to see if you need a permit.",IF(N29="No","Continue to the next question.",IF(N29="Choose Y/N"," "," "))) -> 
B31: 1) | C31: Standards of Performance for Compression Ignition Engines | I31: Full Text: | J31: 40 CFR 60, subp. IIII
B32: 2) | C32: Standards of Performance for Spark Ignition Engines | J32: 40 CFR 60, subp. JJJJ
B34: · | C34: To help understand if the rule applies, use the Regulation Navigation Tool provided by EPA for NSPS IIII and JJJJ.
C35: https://regnav.app.cloud.gov/ice/ice%20-%20Storyline%20output/story_html5.html | N35: =IF(N29="Yes","Continue to the next question.",IF(N29="No","",IF(N29="Choose Y/N"," "))) -> 
B36: There are also engine standards for hazardous air pollutants -- see NESHAP info below.
B39: Does the NSPS for volatile organic liquid (petroleum) storage apply to you? | N39: Choose Y/N
B40: This standard applies if you have a storage tank or container at your site that: | N40: =IF(N39="Yes","You must follow NSPS requirements. Assess emissions to see if you need a permit.",IF(N39="No","Continue to the next question.",IF(N39="Choose Y/N"," "," "))) -> 
B41: 1) | C41: was constructed, reconstructed, or modified* after July 23, 1984,
B42: 2) | C42: holds about 19,800 gallons or more, and
B43: 3) | C43: stores volatile organic liquids (including petroleum products such as fuel).
C45: The full text of NSPS for volatile liquid storage is available at: | I45: 40 CFR pt. 60, subp. Kb | N45: =IF(N39="Yes","Continue to the next question.",IF(N39="No","",IF(N39="Choose Y/N"," "))) -> 
B48: Does the NSPS for calciners and dryers or another NSPS apply to you? | N48: Choose Y/N
B49: The standard for calciners and dryers in mineral industries applies if: | N49: =IF(N48="Yes","Because this NSPS applies to your operation, you need an air permit.",IF(N48="No","Continue to the next question.",IF(N48="Choose Y/N"," "," "))) -> 
B50: 1) | C50: you use a dryer or calciner at your site that was purchased, constructed, reconstructed, or modified* after April 23, 1986.
C52: The full text of NSPS for calciners and dryers is available at: | I52: 40 CFR pt. 60, subp. UUU
N53: =IF(N48="Yes","Continue to the next question.",IF(N48="No","",IF(N48="Choose Y/N"," "))) -> 
B54: Additional performance standards: Even if the standards listed above do not apply to you, there are other NSPS that might, depending on what other equipment or activities you have at the facility.
C57: A list of performance standards is available at: | G57: https://www.pca.state.mn.us/sites/default/files/aq-f1-gi09d.doc
B60: National emission standards for hazardous air pollutants
B61: Does a federal NESHAP apply? | N61: Choose Y/N
B62: A NESHAP that may apply to your crusher engine or generator is for: | N62: =IF(N61="Yes","Follow NESHAP requirements. Assess emissions for permit thresholds.",IF(N61="No","Continue to the next blue tab.",IF(N61="Choose Y/N"," "," "))) -> 
C63: Stationary Reciprocating Internal Combustion Engines | I63: Full Text: | J63: 40 CFR 63, subp. ZZZZ
C64: To help understand if the rule applies, use the Regulation Navigation Tool provided by EPA
C65: https://regnav.app.cloud.gov/rice/rice%20-%20Storyline%20output/story_html5.html
N66: =IF(N61="Yes","Continue to the next blue tab.",IF(N61="No","",IF(N61="Choose Y/N"," "))) -> 
C67: A list of other NESHAPs is found at the end of the following document:
C68: https://www.pca.state.mn.us/sites/default/files/aq-f3-rp07.docx
B71: *Definition of "construction, modification, or reconstruction"
B72: If your business does an activity which is considered construction, modification, or reconstruction, as defined below or within the standard, an NSPS or NESHAP may apply to your business or create the need for a permit amendment.
B74: ▪ | C74: Construction includes fabricating, erecting, or installing an aggregate plant, engine, or storage tank.
B75: ▪ | C75: Modification is a physical or operational change at an existing facility that increases the amount of an air pollutant or results in the emission of a new air pollutant.
B77: ▪ | C77: Reconstruction is the replacement of components at an existing facility that exceeds 50% of the cost required to build a new facility.
B79: The full definitions of construction and modification are available at: | I79: 40 CFR § 60.2 | K79: and reconstruction at: | N79: 40 CFR § 60.15

Sheet State general permit
B1: =Instructions!G2 -> p-sbap5-30 • 7/31/25
B2: State rules for aggregate processing
B3: An air permit is required if
B4: 1) | C4: one or more federal performance standard applies, excluding those listed in Minn. R. 7007.0300, or | L4: Minn. R. 7007.0300
B5: 2) | C5: your business' overall potential air emissions exceed permit thresholds.
B7: On the federal standards tab, you indicated that the following performance standards apply:
E8: =IF('Federal standards'!$N$16="Yes","NSPS OOO"," ") ->  | G8: =IF('Federal standards'!$N$29="Yes","NSPS IIII or JJJJ"," ") ->  | I8: =IF('Federal standards'!$N$39="Yes","NSPS Kb"," ") ->  | J8: =IF('Federal standards'!$N$48="Yes","NSPS UUU/other NSPS"," ") -> 
B9: =IF(OR('Federal standards'!$N$16="Choose Y/N",OR('Federal standards'!$N$29="Choose Y/N",OR('Federal standards'!$N$39="Choose Y/N",'Federal standards'!$N$48="Choose Y/N"))),"Return to the federal standards tab and answer all Y/N questions."," ") -> Return to the federal standards tab and answer all Y/N questions.
C11: When… | F11: Then…
C12: NSPS UUU or NSPS apply (excludes OOO, IIII, JJJJ, Kb) | F12: A permit is required but, you do not qualify for the general permit. Continue to the next blue tab to calculate your potential emissions.
C15: NSPS OOO applies (NSPS IIII, JJJJ, or Kb may also apply) | F15: A permit is required; Calculate your potential air emissions to see if they exceed permitting thresholds.
F17: ▪ | G17: If your potential emissions do not exceed permitting thresholds, you may qualify for a Registration Permit Option A. Go to the permits & requirements tab.
F19: ▪ | G19: If your potential emissions do exceed permitting thresholds, see If you qualify for the nonmetallic mineral general air permit. Go to the qualification review checklist below.
C21: only NSPS IIII, JJJJ, or Kb apply | F21: A permit may be required; Calculate your potential air emissions to see if they exceed permitting thresholds.
F23: ▪ | G23: If your potential emissions do exceed permitting thresholds, see If you qualify for the nonmetallic mineral general air permit. Go to the qualification review checklist below.
C25: an NSPS does not apply | F25: See if your potential emissions exceed permit thresholds. Continue to the following blue tabs to calculate your potential emissions.
F27: Then, if your potential emissions exceed permitting thresholds, you may qualify for the general permit. Go to the qualification checklist below or to the permits and requirements tab.
B30: Does your business qualify for the MPCA general air permit for nonmetallic mineral processors? | N30: Choose Y/N
B31: ▪ | C31: See if your business qualifies for the general air permit for nonmetallic mineral processors by completing the:
D32: NM-00: Qualifications Review Checklist – Nonmetallic Mineral Processing General Permit (aq-f4-nm00)
B33: ▪ | C33: If the business qualifies for the general permit, your business cannot obtain a registration permit.
B35: If yes, stop here: You have indicated that your business qualifies for the general air permit. You do not need to calculate your potential emissions. Begin the air application process with the submittal cover page (SCP-01) and complete all applicable forms for the nonmetallic mineral general permit. See the application forms on the air permit and forms page – scroll down the webpage to #4.
C38: ▪ | D38: SCP-01: Submittal cover page (aq-f1-scp01) | J38: If your business qualifies for the general permit and an individual permit, you may apply for either type.
C39: ▪ | D39: Air permit forms webpage
C40: ▪ | D40: More information on types of air permits | J40: Minn. R. 7007.1100, subp. 5
B42: If no, continue to the next blue tab and calculate your potential air emissions to see which type of permit is required.
C43: The permits and requirements tab will help you decide which permit best fits your facility.
C44: ▪ | D44: More information on types of air permits

Sheet Aggregate
B1: =Instructions!G2 -> p-sbap5-30 • 7/31/25
B2: Air emissions for aggregates: sand and gravel
B3: For the aggregate activities, use the following parameters.
B5: Crushing | C5: Aggregate output diameter | F5: Screening | G5: Occurring between crushers… | J5: Keep records
B6: Primary | C6: 3 to 12 inches | F6: Screening | G6: Primary to Secondary & Secondary to Tertiary | J6: Use the Compliance Calendar
B7: Secondary | C7: 1 to 4 inches | J7: for Aggregate Facilities
B8: Tertiary | C8: 0.5 to 2.5 centimeters (3/16 to 1 inch) | F8: Fines | G8: Tertiary to Fines & Fines
B9: Fines | C9: maximum of 0.5 centimeters (3/16 inch)
C11: Convey and transfer points: One transfer point is counted for every time the material is handled and moved from a piece of equipment or pile. For example, when the aggregate is dumped from an arriving vehicle into a pile, when aggregate is scooped from the pile and dumped into a hopper, when the aggregate is conveyed from one piece of equipment to another, etc.
B15: Potential emissions - Aggregate: sand and gravel
B16: Enter the maximum amount of aggregate that each unit can process per hour, based on manufacturer specifications.
B17: If you have more than one unit of the same type, enter the total maximum hourly throughput in the blue box.
B18: For example: If you have 2 primary crushers where crusher 1 can process 150 tons per hour and crusher 2 can process 50 tons per hour, enter 200 tons per hour in the maximum throughput blue box.
B21: How many transfer points are there for the material? | F21: 0 | G21: number of transfer points
B23: a | D23: b | E23: c | F23: d | G23: e | H23: f | I23: g | J23: h | K23: i
B24: Potential Activity | D24: Maximum Throughput | E24: Maximum Throughput | F24: PM Emission Factor | G24: PM Emissions | H24: PM10 Emission Factor | I24: PM10 Emissions | J24: PM2.5 Emission Factor | K24: PM2.5 Emissions
D26: (tons/hour) | E26: (tons/year) | F26: (lb/ton) | G26: (tons/year) | H26: (lb/ton) | I26: (ton/year) | J26: (lb/ton) | K26: (ton/year)
E27: b*8760 | G27: c*d/2000 | I27: c*f/2000 | K27: c*h/2000
B28: Crushing | C28: Primary | D28: 0 | E28: =D28*8760 -> 0 | F28: ='Aggregate emission factors'!E10 -> 0.0007 | G28: =$E28*F28/2000 -> 0.00 | H28: ='Aggregate emission factors'!G10 -> 0.0007 | I28: =$E28*H28/2000 -> 0.00 | J28: ='Aggregate emission factors'!E36 -> 0.0005 | K28: =$E28*J28/2000 -> 0.00
C29: Secondary | D29: 0 | E29: =D29*8760 -> 0 | F29: ='Aggregate emission factors'!E12 -> 0.025 | G29: 0.00 | H29: ='Aggregate emission factors'!G12 -> 0.0087 | I29: 0.00 | J29: ='Aggregate emission factors'!E37 -> 0.00025 | K29: 0.00
C30: Tertiary | D30: 0 | E30: 0 | F30: ='Aggregate emission factors'!E14 -> 0.0054 | G30: 0.00 | H30: ='Aggregate emission factors'!G14 -> 0.0024 | I30: 0.00 | J30: ='Aggregate emission factors'!E38 -> 0.0005 | K30: 0.00
C31: Fines | D31: 0 | E31: 0 | F31: ='Aggregate emission factors'!E16 -> 0.039 | G31: 0.00 | H31: ='Aggregate emission factors'!G16 -> 0.015 | I31: 0.00 | J31: ='Aggregate emission factors'!E39 -> 0.00035 | K31: 0.00
B32: Screening | C32: Screening | D32: 0 | E32: 0 | F32: ='Aggregate emission factors'!E18 -> 0.025 | G32: 0.00 | H32: ='Aggregate emission factors'!G18 -> 0.0087 | I32: 0.00 | J32: ='Aggregate emission factors'!E40 -> 0.00025 | K32: 0.00
C33: Fines | D33: 0 | E33: 0 | F33: ='Aggregate emission factors'!E20 -> 0.3 | G33: 0.00 | H33: ='Aggregate emission factors'!G20 -> 0.072 | I33: 0.00 | J33: ='Aggregate emission factors'!E41 -> 0.0025 | K33: 0.00
B34: Convey and Transfer Points | D34: =F21*D28 -> 0 | E34: =D34*F21*8760 -> 0 | F34: ='Aggregate emission factors'!E22 -> 0.003 | G34: 0.00 | H34: ='Aggregate emission factors'!G22 -> 0.0011 | I34: 0.00 | J34: ='Aggregate emission factors'!E42 -> 6.5e-05 | K34: 0.00
B35: Total tons of emissions (excluding combustion from engines) | G35: =SUM(G28:G34) -> 0.00 | I35: =SUM(I28:I34) -> 0.00 | K35: =SUM(K28:K34) -> 0.00
B36: Emission factor source: see 'Aggregate Emission Factors' tab
B39: Actual emissions - Aggregate: sand and gravel
B40: Enter the actual tons of aggregate that went through the following equipment processes:
B41: a | D41: b | E41: c | F41: d | G41: e | H41: f | I41: g | J41: h
B42: Actual Activity | D42: Actual Throughput | E42: PM Emission Factor | F42: PM Emissions | G42: PM10 Emission Factor | H42: PM10 Emissions | I42: PM2.5 Emission Factor1 | J42: PM2.5 Emissions
D44: (tons/year) | E44: (lb/ton) | F44: (tons/year) | G44: (lb/ton) | H44: (ton/year) | I44: (lb/ton) | J44: (ton/year)
F45: b*c/2000 | H45: b*e/2000 | J45: b*g/2000
B46: Crushing | C46: Primary | D46: 0 | E46: =F28 -> 0.0007 | F46: =$D46*E46/2000 -> 0.00 | G46: =H28 -> 0.0007 | H46: =$D46*G46/2000 -> 0.00 | I46: =J28 -> 0.0005 | J46: =$D46*I46/2000 -> 0.00
C47: Secondary | D47: 0 | E47: 0.025 | F47: =$D47*E47/2000 -> 0.00 | G47: 0.0087 | H47: =$D47*G47/2000 -> 0.00 | I47: 0.00025 | J47: =$D47*I47/2000 -> 0.00
C48: Tertiary | D48: 0 | E48: 0.0054 | F48: =$D48*E48/2000 -> 0.00 | G48: 0.0024 | H48: =$D48*G48/2000 -> 0.00 | I48: 0.0005 | J48: =$D48*I48/2000 -> 0.00
C49: Fines | D49: 0 | E49: 0.039 | F49: =$D49*E49/2000 -> 0.00 | G49: 0.015 | H49: =$D49*G49/2000 -> 0.00 | I49: 0.00035 | J49: =$D49*I49/2000 -> 0.00
B50: Screening | C50: Screening | D50: 0 | E50: 0.025 | F50: =$D50*E50/2000 -> 0.00 | G50: 0.0087 | H50: =$D50*G50/2000 -> 0.00 | I50: 0.00025 | J50: =$D50*I50/2000 -> 0.00
C51: Fines | D51: 0 | E51: 0.3 | F51: =$D51*E51/2000 -> 0.00 | G51: 0.072 | H51: =$D51*G51/2000 -> 0.00 | I51: 0.0025 | J51: =$D51*I51/2000 -> 0.00
B52: Convey and Transfer Points | D52: 0 | E52: 0.003 | F52: =$D52*E52/2000 -> 0.00 | G52: 0.0011 | H52: =$D52*G52/2000 -> 0.00 | I52: 6.5e-05 | J52: =$D52*I52/2000 -> 0.00
B53: Total tons of emissions (excluding combustion from engines) | F53: =SUM(F46:F52) -> 0.00 | H53: =SUM(H46:H52) -> 0.00 | J53: =SUM(J46:J52) -> 0.00
B54: Emission factor source: see 'Aggregate Emission Factors' tab

Sheet Crusher Engine
B1: =Instructions!G2 -> p-sbap5-30 • 7/31/25
B2: Air emissions from internal combustion engines
B3: For each engine, complete one engine tab and include all information in the blue boxes.
B5: Calculate the potential and actual air emissions from this engine
D6: Engine and fuel type | E6: Choose one
D7: Engine use | E7: Choose one
D8: =IF($E$6='Data validation'!$A$6," ",IF(OR($E$6=rd,$E$6=rg),"Rated mechanical output",IF(OR($E$6=pro,OR($E$6=ngl,OR($E$6=ngr,OR($E$6=tng,$E$6=ng2l)))),"Rated fuel input"," "))) ->  | E8: 0 | F8: =IF($D$8=" "," ",IF($D$8="Rated mechanical output",'Data validation'!$A$24,IF(AND($D$8="Rated fuel input",$E$6=pro),'Data validation'!$A$26,'Data validation'!$A$25))) -> 
B9: Choose one to calculate actual emissions | E9: 0 | F9: =IF($B$9='Data validation'!$B$5," ",IF($B$9='Data validation'!$B$6,'Data validation'!$B$11,IF(AND($B$9='Data validation'!$B$7,OR($E$6=tng,OR($E$6=ngl,OR($E$6=ngr,OR($E$6=ng2l))))),'Data validation'!$B$12,IF(AND($B$9='Data validation'!$B$7,OR($E$6=rd,OR($E$6=rg,OR($E$6=pro)))),'Data validation'!$B$13," ")))) -> 
D10: =IF($F$8=" "," ",IF($F$8='Data validation'!$A$24,'Data validation'!$A$29,IF(OR($F$8='Data validation'!$A$25,$F$8='Data validation'!$A$26),'Data validation'!$A$30))) ->  | E10: =IF(E6='Data validation'!A6," ",IF(E6=rd,'Engine emission factors'!F53,IF(E6=rg,'Engine emission factors'!F54,IF(OR(E6=ngl,OR(E6=ngr,OR(E6=tng,E6=ng2l))),'Engine emission factors'!G52,IF(E6=pro,'Engine emission factors'!H55," "))))) ->  | F10: =IF($D$10=" "," ",IF($D$10='Data validation'!$A$29,"(Btu/HP-hr)",IF(AND($D$10='Data validation'!$A$30,$E$6=pro),"(Btu/gal)",IF($D$10='Data validation'!$A$30,"(Btu/scf)")))) -> 
D11: =IF($E$6='Data validation'!$A$6," ",IF($E$6=rd,"Heat value of fuel",IF($E$6=rg,"Heat value of fuel"," "))) ->  | E11: =IF(E6=rd,'Engine emission factors'!H53,IF(E6=rg,'Engine emission factors'!H54," ")) ->  | F11: =IF($E$6='Data validation'!$A$6," ",IF($E$6=rd,"(Btu/gal)",IF($E$6=rg,"(Btu/gal)"," "))) -> 
B12: Sulfur content of the fuel | E12: =IF(E6=rd,"0.0015",IF(E6=pro,"0.54",IF(E6=tng,"0.00065","NA"))) -> NA | F12: =IF(OR(E6=rd,E6=tng),"%",IF(E6=pro,"gr/100ft3","")) -> 
B14: Internal combustion engine potential and actual emissions
C15: a | D15: b | E15: c | F15: d | G15: e
B16: Pollutant | C16: GWP1 | D16: Engine Rated Output | E16: Actual Annual Throughput | F16: Potential Annual Hours3 | G16: Emission Factor | H16: Potential Emissions | I16: Actual Emissions | J16: Insignificant Activity4 Limits
D18: (MMBtu/hr) | E18: (MMBtu/yr) | F18: (hr/yr) | G18: (lbs/MMBtu) | H18: (ton/yr) | I18: (tons/yr) | J18: (tons/yr)
D19: =IF(E6=select,0,IF(OR(E6=rd,E6=rg),(E8*E10/10^6),IF(E6=pro,(E8*E10/10^6),IF(OR(E6=ngl,OR(E6=ngr,OR(E6=tng,E6=ng2l))),(E8*E10/(10^6)))))) -> 0 | E19: =IF(F9='Data validation'!B12,E9,IF(AND(F9='Data validation'!B13,E6=rd),(('Engine emission factors'!H53*E9)/1000000),IF(AND(F9='Data validation'!B13,E6=rg),(('Engine emission factors'!H54*E9)/1000000),IF(AND(F9='Data validation'!B13,E6=pro),(('Engine emission factors'!H55*E9)/1000000),IF(F9='Data validation'!B11,(E9*D19),IF(F9=" ",0)))))) -> 0 | F19: =IF($E$7=so,0,IF($E$7=Routine,8760,IF($E$7=Emer,500))) -> 0 | G19: by pollutant | H19: (b * d * e) / 2000 | I19: (c * e) / 2000
B20: Criteria Air Pollutants | I20: see engine emission factors tab
B21: PM | G21: =IF($E$6=rd,IF($E$8>=600,'Engine emission factors'!$C5,'Engine emission factors'!$B5),IF($E$6=rg,'Engine emission factors'!$E5,IF($E$6=tng,'Engine emission factors'!$D5,IF($E$6=ngr,'Engine emission factors'!$F5,IF($E$6=ngl,'Engine emission factors'!$G5,IF($E$6=ng2l,'Engine emission factors'!$H5,IF($E$6=pro,'Engine emission factors'!$I5,IF($E$6=select,'Engine emission factors'!$AA5)))))))) -> 0.0000 | H21: =$D$19*$F$19*$G21/2000 -> 0.00 | I21: =($E$19*$G21)/2000 -> 0.00 | J21: 1.0
B22: PM10 | G22: =IF($E$6=rd,IF($E$8>=600,'Engine emission factors'!$C6,'Engine emission factors'!$B6),IF($E$6=rg,'Engine emission factors'!$E6,IF($E$6=tng,'Engine emission factors'!$D6,IF($E$6=ngr,'Engine emission factors'!$F6,IF($E$6=ngl,'Engine emission factors'!$G6,IF($E$6=ng2l,'Engine emission factors'!$H6,IF($E$6=pro,'Engine emission factors'!$I6,IF($E$6=select,'Engine emission factors'!$AA6)))))))) -> 0.0000 | H22: =$D$19*$F$19*$G22/2000 -> 0.00 | I22: =($E$19*$G22)/2000 -> 0.00 | J22: 1.0
B23: PM2.5 | G23: =IF($E$6=rd,IF($E$8>=600,'Engine emission factors'!$C7,'Engine emission factors'!$B7),IF($E$6=rg,'Engine emission factors'!$E7,IF($E$6=tng,'Engine emission factors'!$D7,IF($E$6=ngr,'Engine emission factors'!$F7,IF($E$6=ngl,'Engine emission factors'!$G7,IF($E$6=ng2l,'Engine emission factors'!$H7,IF($E$6=pro,'Engine emission factors'!$I7,IF($E$6=select,'Engine emission factors'!$AA7)))))))) -> 0.0000 | H23: 0.00 | I23: 0.00
B24: SOx | G24: =IF($E$6=rd,IF($E$8>=600,'Engine emission factors'!$C8*$E$12,'Engine emission factors'!$B8*$E$12),IF($E$6=rg,'Engine emission factors'!$E8,IF($E$6=tng,'Engine emission factors'!$D8*$E$12,IF($E$6=ngr,'Engine emission factors'!$F8,IF($E$6=ngl,'Engine emission factors'!$G8,IF($E$6=ng2l,'Engine emission factors'!$H8,IF($E$6=pro,'Engine emission factors'!$I8*$E$12,IF($E$6=select,'Engine emission factors'!$AA8)))))))) -> 0.0000 | H24: 0.00 | I24: 0.00 | J24: 1.0
B25: NOx | G25: =IF($E$6=rd,IF($E$8>=600,'Engine emission factors'!$C9,'Engine emission factors'!$B9),IF($E$6=rg,'Engine emission factors'!$E9,IF($E$6=tng,'Engine emission factors'!$D9,IF($E$6=ngr,'Engine emission factors'!$F9,IF($E$6=ngl,'Engine emission factors'!$G9,IF($E$6=ng2l,'Engine emission factors'!$H9,IF($E$6=pro,'Engine emission factors'!$I9,IF($E$6=select,'Engine emission factors'!$AA9)))))))) -> 0.0000 | H25: 0.00 | I25: 0.00 | J25: 1.0
B26: VOC | G26: =IF($E$6=rd,IF($E$8>=600,'Engine emission factors'!$C10,'Engine emission factors'!$B10),IF($E$6=rg,'Engine emission factors'!$E10,IF($E$6=tng,'Engine emission factors'!$D10,IF($E$6=ngr,'Engine emission factors'!$F10,IF($E$6=ngl,'Engine emission factors'!$G10,IF($E$6=ng2l,'Engine emission factors'!$H10,IF($E$6=pro,'Engine emission factors'!$I10,IF($E$6=select,'Engine emission factors'!$AA10)))))))) -> 0.0000 | H26: 0.00 | I26: 0.00 | J26: 1.0
B27: CO | G27: =IF($E$6=rd,IF($E$8>=600,'Engine emission factors'!$C11,'Engine emission factors'!$B11),IF($E$6=rg,'Engine emission factors'!$E11,IF($E$6=tng,'Engine emission factors'!$D11,IF($E$6=ngr,'Engine emission factors'!$F11,IF($E$6=ngl,'Engine emission factors'!$G11,IF($E$6=ng2l,'Engine emission factors'!$H11,IF($E$6=pro,'Engine emission factors'!$I11,IF($E$6=select,'Engine emission factors'!$AA11)))))))) -> 0.0000 | H27: 0.00 | I27: 0.00 | J27: 2.0
B28: Lead | G28: n/a | H28: 0.00 | I28: 0.00
B29: Greenhouse Gas Emissions | I29: Source: 40 CFR 98, Subp. C, Table C-1 and C-2
B30: CO2 2 | C30: 1 | G30: =IF($E$6=rd,IF($E$8>=600,'Engine emission factors'!$C13,'Engine emission factors'!$B13),IF($E$6=rg,'Engine emission factors'!$E13,IF($E$6=tng,'Engine emission factors'!$D13,IF($E$6=ngr,'Engine emission factors'!$F13,IF($E$6=ngl,'Engine emission factors'!$G13,IF($E$6=ng2l,'Engine emission factors'!$H13,IF($E$6=pro,'Engine emission factors'!$I13,IF($E$6=select,'Engine emission factors'!$AA13)))))))) -> 0.0000 | H30: =$D$19*$F$19*$G30/2000 -> 0.00 | I30: =($E$19*$G30)/2000 -> 0.00
B31: CH4 2 | C31: 25 | G31: =IF($E$6=rd,IF($E$8>=600,'Engine emission factors'!$C14,'Engine emission factors'!$B14),IF($E$6=rg,'Engine emission factors'!$E14,IF($E$6=tng,'Engine emission factors'!$D14,IF($E$6=ngr,'Engine emission factors'!$F14,IF($E$6=ngl,'Engine emission factors'!$G14,IF($E$6=ng2l,'Engine emission factors'!$H14,IF($E$6=pro,'Engine emission factors'!$I14,IF($E$6=select,'Engine emission factors'!$AA14)))))))) -> 0.0000 | H31: =$D$19*$F$19*$G31/2000 -> 0.0000 | I31: =($E$19*$G31)/2000 -> 0.0000
B32: N2O 2 | C32: 298 | G32: =IF($E$6=rd,IF($E$8>=600,'Engine emission factors'!$C15,'Engine emission factors'!$B15),IF($E$6=rg,'Engine emission factors'!$E15,IF($E$6=tng,'Engine emission factors'!$D15,IF($E$6=ngr,'Engine emission factors'!$F15,IF($E$6=ngl,'Engine emission factors'!$G15,IF($E$6=ng2l,'Engine emission factors'!$H15,IF($E$6=pro,'Engine emission factors'!$I15,IF($E$6=select,'Engine emission factors'!$Q15)))))))) -> 0.0000 | H32: =$D$19*$F$19*$G32/2000 -> 0.0000 | I32: =($E$19*$G32)/2000 -> 0.0000
F33: GHG total (CO2e) 2 | H33: =(C30*H30)+(C31*H31)+(C32*H32) -> 0.00 | I33: =(C30*I30)+(C31*I31)+(C32*I32) -> 0.00 | J33: 1000
B34: Hazardous Air Pollutants | G34: see engine emission factors tab
B35: 1,1,2,2-tetrachloroethane | G35: =IF($E$6=rd,IF($E$8>=600,'Engine emission factors'!$C17,'Engine emission factors'!$B17),IF($E$6=rg,'Engine emission factors'!$E17,IF($E$6=tng,'Engine emission factors'!$D17,IF($E$6=ngr,'Engine emission factors'!$F17,IF($E$6=ngl,'Engine emission factors'!$G17,IF($E$6=ng2l,'Engine emission factors'!$H17,IF($E$6=pro,'Engine emission factors'!$I17,IF($E$6=select,'Engine emission factors'!$Q17)))))))) -> 0.0000 | H35: =$D$19*$F$19*$G35/2000 -> 0.0000 | I35: =($E$19*$G35)/2000 -> 0.0000
B36: 1,1,2-trichloroethane | G36: =IF($E$6=rd,IF($E$8>=600,'Engine emission factors'!$C18,'Engine emission factors'!$B18),IF($E$6=rg,'Engine emission factors'!$E18,IF($E$6=tng,'Engine emission factors'!$D18,IF($E$6=ngr,'Engine emission factors'!$F18,IF($E$6=ngl,'Engine emission factors'!$G18,IF($E$6=ng2l,'Engine emission factors'!$H18,IF($E$6=pro,'Engine emission factors'!$I18,IF($E$6=select,'Engine emission factors'!$Q18)))))))) -> 0.0000 | H36: 0.0000 | I36: =($E$19*$G36)/2000 -> 0.0000
B37: 1,3-butadiene | G37: =IF($E$6=rd,IF($E$8>=600,'Engine emission factors'!$C19,'Engine emission factors'!$B19),IF($E$6=rg,'Engine emission factors'!$E19,IF($E$6=tng,'Engine emission factors'!$D19,IF($E$6=ngr,'Engine emission factors'!$F19,IF($E$6=ngl,'Engine emission factors'!$G19,IF($E$6=ng2l,'Engine emission factors'!$H19,IF($E$6=pro,'Engine emission factors'!$I19,IF($E$6=select,'Engine emission factors'!$Q19)))))))) -> 0.0000 | H37: 0.0000 | I37: 0.0000
B38: 1,3-dichloropropene | G38: =IF($E$6=rd,IF($E$8>=600,'Engine emission factors'!$C20,'Engine emission factors'!$B20),IF($E$6=rg,'Engine emission factors'!$E20,IF($E$6=tng,'Engine emission factors'!$D20,IF($E$6=ngr,'Engine emission factors'!$F20,IF($E$6=ngl,'Engine emission factors'!$G20,IF($E$6=ng2l,'Engine emission factors'!$H20,IF($E$6=pro,'Engine emission factors'!$I20,IF($E$6=select,'Engine emission factors'!$AA20)))))))) -> 0.0000 | H38: 0.0000 | I38: 0.0000
B39: Acetaldehyde | G39: =IF($E$6=rd,IF($E$8>=600,'Engine emission factors'!$C21,'Engine emission factors'!$B21),IF($E$6=rg,'Engine emission factors'!$E21,IF($E$6=tng,'Engine emission factors'!$D21,IF($E$6=ngr,'Engine emission factors'!$F21,IF($E$6=ngl,'Engine emission factors'!$G21,IF($E$6=ng2l,'Engine emission factors'!$H21,IF($E$6=pro,'Engine emission factors'!$I21,IF($E$6=select,'Engine emission factors'!$AA21)))))))) -> 0.0000 | H39: 0.0000 | I39: 0.0000
B40: Acrolein | G40: =IF($E$6=rd,IF($E$8>=600,'Engine emission factors'!$C22,'Engine emission factors'!$B22),IF($E$6=rg,'Engine emission factors'!$E22,IF($E$6=tng,'Engine emission factors'!$D22,IF($E$6=ngr,'Engine emission factors'!$F22,IF($E$6=ngl,'Engine emission factors'!$G22,IF($E$6=ng2l,'Engine emission factors'!$H22,IF($E$6=pro,'Engine emission factors'!$I22,IF($E$6=select,'Engine emission factors'!$AA22)))))))) -> 0.0000 | H40: 0.0000 | I40: 0.0000
B41: Benzene | G41: =IF($E$6=rd,IF($E$8>=600,'Engine emission factors'!$C23,'Engine emission factors'!$B23),IF($E$6=rg,'Engine emission factors'!$E23,IF($E$6=tng,'Engine emission factors'!$D23,IF($E$6=ngr,'Engine emission factors'!$F23,IF($E$6=ngl,'Engine emission factors'!$G23,IF($E$6=ng2l,'Engine emission factors'!$H23,IF($E$6=pro,'Engine emission factors'!$I23,IF($E$6=select,'Engine emission factors'!$AA23)))))))) -> 0.0000 | H41: 0.0000 | I41: 0.0000
B42: Biphenyl | G42: =IF($E$6=rd,IF($E$8>=600,'Engine emission factors'!$C24,'Engine emission factors'!$B24),IF($E$6=rg,'Engine emission factors'!$E24,IF($E$6=tng,'Engine emission factors'!$D24,IF($E$6=ngr,'Engine emission factors'!$F24,IF($E$6=ngl,'Engine emission factors'!$G24,IF($E$6=ng2l,'Engine emission factors'!$H24,IF($E$6=pro,'Engine emission factors'!$I24,IF($E$6=select,'Engine emission factors'!$AA24)))))))) -> 0.0000 | H42: 0.0000 | I42: 0.0000
B43: Carbon tetrachloride | G43: =IF($E$6=rd,IF($E$8>=600,'Engine emission factors'!$C25,'Engine emission factors'!$B25),IF($E$6=rg,'Engine emission factors'!$E25,IF($E$6=tng,'Engine emission factors'!$D25,IF($E$6=ngr,'Engine emission factors'!$F25,IF($E$6=ngl,'Engine emission factors'!$G25,IF($E$6=ng2l,'Engine emission factors'!$H25,IF($E$6=pro,'Engine emission factors'!$I25,IF($E$6=select,'Engine emission factors'!$AA25)))))))) -> 0.0000 | H43: 0.0000 | I43: 0.0000
B44: Chlorobenzene | G44: =IF($E$6=rd,IF($E$8>=600,'Engine emission factors'!$C26,'Engine emission factors'!$B26),IF($E$6=rg,'Engine emission factors'!$E26,IF($E$6=tng,'Engine emission factors'!$D26,IF($E$6=ngr,'Engine emission factors'!$F26,IF($E$6=ngl,'Engine emission factors'!$G26,IF($E$6=ng2l,'Engine emission factors'!$H26,IF($E$6=pro,'Engine emission factors'!$I26,IF($E$6=select,'Engine emission factors'!$AA26)))))))) -> 0.0000 | H44: 0.0000 | I44: 0.0000
B45: Chloroform | G45: =IF($E$6=rd,IF($E$8>=600,'Engine emission factors'!$C27,'Engine emission factors'!$B27),IF($E$6=rg,'Engine emission factors'!$E27,IF($E$6=tng,'Engine emission factors'!$D27,IF($E$6=ngr,'Engine emission factors'!$F27,IF($E$6=ngl,'Engine emission factors'!$G27,IF($E$6=ng2l,'Engine emission factors'!$H27,IF($E$6=pro,'Engine emission factors'!$I27,IF($E$6=select,'Engine emission factors'!$AA27)))))))) -> 0.0000 | H45: 0.0000 | I45: 0.0000
B46: Ethylbenzene | G46: =IF($E$6=rd,IF($E$8>=600,'Engine emission factors'!$C28,'Engine emission factors'!$B28),IF($E$6=rg,'Engine emission factors'!$E28,IF($E$6=tng,'Engine emission factors'!$D28,IF($E$6=ngr,'Engine emission factors'!$F28,IF($E$6=ngl,'Engine emission factors'!$G28,IF($E$6=ng2l,'Engine emission factors'!$H28,IF($E$6=pro,'Engine emission factors'!$I28,IF($E$6=select,'Engine emission factors'!$AA28)))))))) -> 0.0000 | H46: 0.0000 | I46: 0.0000
B47: Ethylene dibromide | G47: =IF($E$6=rd,IF($E$8>=600,'Engine emission factors'!$C29,'Engine emission factors'!$B29),IF($E$6=rg,'Engine emission factors'!$E29,IF($E$6=tng,'Engine emission factors'!$D29,IF($E$6=ngr,'Engine emission factors'!$F29,IF($E$6=ngl,'Engine emission factors'!$G29,IF($E$6=ng2l,'Engine emission factors'!$H29,IF($E$6=pro,'Engine emission factors'!$I29,IF($E$6=select,'Engine emission factors'!$AA29)))))))) -> 0.0000 | H47: 0.0000 | I47: 0.0000
B48: Formaldehyde | G48: =IF($E$6=rd,IF($E$8>=600,'Engine emission factors'!$C30,'Engine emission factors'!$B30),IF($E$6=rg,'Engine emission factors'!$E30,IF($E$6=tng,'Engine emission factors'!$D30,IF($E$6=ngr,'Engine emission factors'!$F30,IF($E$6=ngl,'Engine emission factors'!$G30,IF($E$6=ng2l,'Engine emission factors'!$H30,IF($E$6=pro,'Engine emission factors'!$I30,IF($E$6=select,'Engine emission factors'!$AA30)))))))) -> 0.0000 | H48: 0.0000 | I48: 0.0000
B49: Hexane | G49: =IF($E$6=rd,IF($E$8>=600,'Engine emission factors'!$C31,'Engine emission factors'!$B31),IF($E$6=rg,'Engine emission factors'!$E31,IF($E$6=tng,'Engine emission factors'!$D31,IF($E$6=ngr,'Engine emission factors'!$F31,IF($E$6=ngl,'Engine emission factors'!$G31,IF($E$6=ng2l,'Engine emission factors'!$H31,IF($E$6=pro,'Engine emission factors'!$I31,IF($E$6=select,'Engine emission factors'!$AA31)))))))) -> 0.0000 | H49: 0.0000 | I49: 0.0000
B50: Methanol | G50: =IF($E$6=rd,IF($E$8>=600,'Engine emission factors'!$C32,'Engine emission factors'!$B32),IF($E$6=rg,'Engine emission factors'!$E32,IF($E$6=tng,'Engine emission factors'!$D32,IF($E$6=ngr,'Engine emission factors'!$F32,IF($E$6=ngl,'Engine emission factors'!$G32,IF($E$6=ng2l,'Engine emission factors'!$H32,IF($E$6=pro,'Engine emission factors'!$I32,IF($E$6=select,'Engine emission factors'!$AA32)))))))) -> 0.0000 | H50: 0.0000 | I50: 0.0000
B51: Methylene chloride | G51: =IF($E$6=rd,IF($E$8>=600,'Engine emission factors'!$C33,'Engine emission factors'!$B33),IF($E$6=rg,'Engine emission factors'!$E33,IF($E$6=tng,'Engine emission factors'!$D33,IF($E$6=ngr,'Engine emission factors'!$F33,IF($E$6=ngl,'Engine emission factors'!$G33,IF($E$6=ng2l,'Engine emission factors'!$H33,IF($E$6=pro,'Engine emission factors'!$I33,IF($E$6=select,'Engine emission factors'!$AA33)))))))) -> 0.0000 | H51: 0.0000 | I51: 0.0000
B52: Naphthalene | G52: =IF($E$6=rd,IF($E$8>=600,'Engine emission factors'!$C34,'Engine emission factors'!$B34),IF($E$6=rg,'Engine emission factors'!$E34,IF($E$6=tng,'Engine emission factors'!$D34,IF($E$6=ngr,'Engine emission factors'!$F34,IF($E$6=ngl,'Engine emission factors'!$G34,IF($E$6=ng2l,'Engine emission factors'!$H34,IF($E$6=pro,'Engine emission factors'!$I34,IF($E$6=select,'Engine emission factors'!$AA34)))))))) -> 0.0000 | H52: 0.0000 | I52: 0.0000
B53: PAH | G53: =IF($E$6=rd,IF($E$8>=600,'Engine emission factors'!$C35,'Engine emission factors'!$B35),IF($E$6=rg,'Engine emission factors'!$E35,IF($E$6=tng,'Engine emission factors'!$D35,IF($E$6=ngr,'Engine emission factors'!$F35,IF($E$6=ngl,'Engine emission factors'!$G35,IF($E$6=ng2l,'Engine emission factors'!$H35,IF($E$6=pro,'Engine emission factors'!$I35,IF($E$6=select,'Engine emission factors'!$AA35)))))))) -> 0.0000 | H53: 0.0000 | I53: 0.0000
B54: Phenol | G54: =IF($E$6=rd,IF($E$8>=600,'Engine emission factors'!$C36,'Engine emission factors'!$B36),IF($E$6=rg,'Engine emission factors'!$E36,IF($E$6=tng,'Engine emission factors'!$D36,IF($E$6=ngr,'Engine emission factors'!$F36,IF($E$6=ngl,'Engine emission factors'!$G36,IF($E$6=ng2l,'Engine emission factors'!$H36,IF($E$6=pro,'Engine emission factors'!$I36,IF($E$6=select,'Engine emission factors'!$AA36)))))))) -> 0.0000 | H54: 0.0000 | I54: 0.0000
B55: Styrene | G55: =IF($E$6=rd,IF($E$8>=600,'Engine emission factors'!$C37,'Engine emission factors'!$B37),IF($E$6=rg,'Engine emission factors'!$E37,IF($E$6=tng,'Engine emission factors'!$D37,IF($E$6=ngr,'Engine emission factors'!$F37,IF($E$6=ngl,'Engine emission factors'!$G37,IF($E$6=ng2l,'Engine emission factors'!$H37,IF($E$6=pro,'Engine emission factors'!$I37,IF($E$6=select,'Engine emission factors'!$AA37)))))))) -> 0.0000 | H55: 0.0000 | I55: 0.0000
B56: Tetrachloroethane | G56: =IF($E$6=rd,IF($E$8>=600,'Engine emission factors'!$C38,'Engine emission factors'!$B38),IF($E$6=rg,'Engine emission factors'!$E38,IF($E$6=tng,'Engine emission factors'!$D38,IF($E$6=ngr,'Engine emission factors'!$F38,IF($E$6=ngl,'Engine emission factors'!$G38,IF($E$6=ng2l,'Engine emission factors'!$H38,IF($E$6=pro,'Engine emission factors'!$I38,IF($E$6=select,'Engine emission factors'!$AA38)))))))) -> 0.0000 | H56: 0.0000 | I56: 0.0000
B57: Toluene | G57: =IF($E$6=rd,IF($E$8>=600,'Engine emission factors'!$C39,'Engine emission factors'!$B39),IF($E$6=rg,'Engine emission factors'!$E39,IF($E$6=tng,'Engine emission factors'!$D39,IF($E$6=ngr,'Engine emission factors'!$F39,IF($E$6=ngl,'Engine emission factors'!$G39,IF($E$6=ng2l,'Engine emission factors'!$H39,IF($E$6=pro,'Engine emission factors'!$I39,IF($E$6=select,'Engine emission factors'!$AA39)))))))) -> 0.0000 | H57: 0.0000 | I57: 0.0000
B58: Vinyl chloride | G58: =IF($E$6=rd,IF($E$8>=600,'Engine emission factors'!$C40,'Engine emission factors'!$B40),IF($E$6=rg,'Engine emission factors'!$E40,IF($E$6=tng,'Engine emission factors'!$D40,IF($E$6=ngr,'Engine emission factors'!$F40,IF($E$6=ngl,'Engine emission factors'!$G40,IF($E$6=ng2l,'Engine emission factors'!$H40,IF($E$6=pro,'Engine emission factors'!$I40,IF($E$6=select,'Engine emission factors'!$AA40)))))))) -> 0.0000 | H58: 0.0000 | I58: 0.0000
B59: Xylene | G59: =IF($E$6=rd,IF($E$8>=600,'Engine emission factors'!$C41,'Engine emission factors'!$B41),IF($E$6=rg,'Engine emission factors'!$E41,IF($E$6=tng,'Engine emission factors'!$D41,IF($E$6=ngr,'Engine emission factors'!$F41,IF($E$6=ngl,'Engine emission factors'!$G41,IF($E$6=ng2l,'Engine emission factors'!$H41,IF($E$6=pro,'Engine emission factors'!$I41,IF($E$6=select,'Engine emission factors'!$AA41)))))))) -> 0.0000 | H59: 0.0000 | I59: 0.0000
F60: HAP total | H60: =SUM(H35:H59) -> 0.0000 | I60: =SUM(I35:I59) -> 0.0000
B61: 1 Global Warming Potential from 40 CFR Part 98, Subpart A, Table A-1
B62: 2 CO2e = carbon dioxide equivalents
B63: 3 Routine = 24 hr/day * 365 day/yr or 8760 hr/yr; Emergency = 500 hr/yr for purposes of calculating potential air emission to identify whether or not a permit is required.
B64: 4 See information on insignificant activities at Minn. R. 7007.1300 and on the 'Permits & Requirements' tab. | G64: Minn. R. 7007.1300

Sheet Generator
B1: =Instructions!G2 -> p-sbap5-30 • 7/31/25
B2: Air emissions from internal combustion engines
B3: For each engine, complete one engine tab and include all information in the blue boxes.
B5: Calculate the potential and actual air emissions from this engine
D6: Engine and fuel type | E6: Choose one
D7: Engine use | E7: Choose one
D8: =IF($E$6='Data validation'!$A$6," ",IF(OR($E$6=rd,$E$6=rg),"Rated mechanical output",IF(OR($E$6=pro,OR($E$6=ngl,OR($E$6=ngr,OR($E$6=tng,$E$6=ng2l)))),"Rated fuel input"," "))) ->  | E8: 0 | F8: =IF($D$8=" "," ",IF($D$8="Rated mechanical output",'Data validation'!$A$24,IF(AND($D$8="Rated fuel input",$E$6=pro),'Data validation'!$A$26,'Data validation'!$A$25))) -> 
B9: Choose one to calculate actual emissions | E9: 0 | F9: =IF($B$9='Data validation'!$B$5," ",IF($B$9='Data validation'!$B$6,'Data validation'!$B$11,IF(AND($B$9='Data validation'!$B$7,OR($E$6=tng,OR($E$6=ngl,OR($E$6=ngr,OR($E$6=ng2l))))),'Data validation'!$B$12,IF(AND($B$9='Data validation'!$B$7,OR($E$6=rd,OR($E$6=rg,OR($E$6=pro)))),'Data validation'!$B$13," ")))) -> 
D10: =IF($F$8=" "," ",IF($F$8='Data validation'!$A$24,'Data validation'!$A$29,IF(OR($F$8='Data validation'!$A$25,$F$8='Data validation'!$A$26),'Data validation'!$A$30))) ->  | E10: =IF(E6='Data validation'!A6," ",IF(E6=rd,'Engine emission factors'!F53,IF(E6=rg,'Engine emission factors'!F54,IF(OR(E6=ngl,OR(E6=ngr,OR(E6=tng,E6=ng2l))),'Engine emission factors'!G52,IF(E6=pro,'Engine emission factors'!H55," "))))) ->  | F10: =IF($D$10=" "," ",IF($D$10='Data validation'!$A$29,"(Btu/HP-hr)",IF(AND($D$10='Data validation'!$A$30,$E$6=pro),"(Btu/gal)",IF($D$10='Data validation'!$A$30,"(Btu/scf)")))) -> 
D11: =IF($E$6='Data validation'!$A$6," ",IF($E$6=rd,"Heat value of fuel",IF($E$6=rg,"Heat value of fuel"," "))) ->  | E11: =IF(E6=rd,'Engine emission factors'!H53,IF(E6=rg,'Engine emission factors'!H54," ")) ->  | F11: =IF($E$6='Data validation'!$A$6," ",IF($E$6=rd,"(Btu/gal)",IF($E$6=rg,"(Btu/gal)"," "))) -> 
B12: Sulfur content of the fuel | E12: =IF(E6=rd,"0.0015",IF(E6=pro,"0.54",IF(E6=tng,"0.00065","NA"))) -> NA | F12: =IF(OR(E6=rd,E6=tng),"%",IF(E6=pro,"gr/100ft3","")) -> 
B14: Internal combustion engine potential and actual emissions
C15: a | D15: b | E15: c | F15: d | G15: e
B16: Pollutant | C16: GWP1 | D16: Engine Rated Output | E16: Actual Annual Throughput | F16: Potential Annual Hours3 | G16: Emission Factor | H16: Potential Emissions | I16: Actual Emissions | J16: Insignificant Activity4 Limits
D18: (MMBtu/hr) | E18: (MMBtu/yr) | F18: (hr/yr) | G18: (lbs/MMBtu) | H18: (ton/yr) | I18: (tons/yr) | J18: (tons/yr)
D19: =IF(E6=select,0,IF(OR(E6=rd,E6=rg),(E8*E10/10^6),IF(E6=pro,(E8*E10/10^6),IF(OR(E6=ngl,OR(E6=ngr,OR(E6=tng,E6=ng2l))),(E8*E10/(10^6)))))) -> 0 | E19: =IF(F9='Data validation'!B12,E9,IF(AND(F9='Data validation'!B13,E6=rd),(('Engine emission factors'!H53*E9)/1000000),IF(AND(F9='Data validation'!B13,E6=rg),(('Engine emission factors'!H54*E9)/1000000),IF(AND(F9='Data validation'!B13,E6=pro),(('Engine emission factors'!H55*E9)/1000000),IF(F9='Data validation'!B11,(E9*D19),IF(F9=" ",0)))))) -> 0 | F19: =IF($E$7=so,0,IF($E$7=Routine,8760,IF($E$7=Emer,500))) -> 0 | G19: by pollutant | H19: (b * d * e) / 2000 | I19: (c * e) / 2000
B20: Criteria Air Pollutants | I20: see engine emission factors tab
B21: PM | G21: =IF($E$6=rd,IF($E$8>=600,'Engine emission factors'!$C5,'Engine emission factors'!$B5),IF($E$6=rg,'Engine emission factors'!$E5,IF($E$6=tng,'Engine emission factors'!$D5,IF($E$6=ngr,'Engine emission factors'!$F5,IF($E$6=ngl,'Engine emission factors'!$G5,IF($E$6=ng2l,'Engine emission factors'!$H5,IF($E$6=pro,'Engine emission factors'!$I5,IF($E$6=select,'Engine emission factors'!$AA5)))))))) -> 0.0000 | H21: =$D$19*$F$19*$G21/2000 -> 0.00 | I21: =($E$19*$G21)/2000 -> 0.00 | J21: 1.0
B22: PM10 | G22: =IF($E$6=rd,IF($E$8>=600,'Engine emission factors'!$C6,'Engine emission factors'!$B6),IF($E$6=rg,'Engine emission factors'!$E6,IF($E$6=tng,'Engine emission factors'!$D6,IF($E$6=ngr,'Engine emission factors'!$F6,IF($E$6=ngl,'Engine emission factors'!$G6,IF($E$6=ng2l,'Engine emission factors'!$H6,IF($E$6=pro,'Engine emission factors'!$I6,IF($E$6=select,'Engine emission factors'!$AA6)))))))) -> 0.0000 | H22: =$D$19*$F$19*$G22/2000 -> 0.00 | I22: =($E$19*$G22)/2000 -> 0.00 | J22: 1.0
B23: PM2.5 | G23: =IF($E$6=rd,IF($E$8>=600,'Engine emission factors'!$C7,'Engine emission factors'!$B7),IF($E$6=rg,'Engine emission factors'!$E7,IF($E$6=tng,'Engine emission factors'!$D7,IF($E$6=ngr,'Engine emission factors'!$F7,IF($E$6=ngl,'Engine emission factors'!$G7,IF($E$6=ng2l,'Engine emission factors'!$H7,IF($E$6=pro,'Engine emission factors'!$I7,IF($E$6=select,'Engine emission factors'!$AA7)))))))) -> 0.0000 | H23: 0.00 | I23: 0.00
B24: SOx | G24: =IF($E$6=rd,IF($E$8>=600,'Engine emission factors'!$C8*$E$12,'Engine emission factors'!$B8*$E$12),IF($E$6=rg,'Engine emission factors'!$E8,IF($E$6=tng,'Engine emission factors'!$D8*$E$12,IF($E$6=ngr,'Engine emission factors'!$F8,IF($E$6=ngl,'Engine emission factors'!$G8,IF($E$6=ng2l,'Engine emission factors'!$H8,IF($E$6=pro,'Engine emission factors'!$I8*$E$12,IF($E$6=select,'Engine emission factors'!$AA8)))))))) -> 0.0000 | H24: 0.00 | I24: 0.00 | J24: 1.0
B25: NOx | G25: =IF($E$6=rd,IF($E$8>=600,'Engine emission factors'!$C9,'Engine emission factors'!$B9),IF($E$6=rg,'Engine emission factors'!$E9,IF($E$6=tng,'Engine emission factors'!$D9,IF($E$6=ngr,'Engine emission factors'!$F9,IF($E$6=ngl,'Engine emission factors'!$G9,IF($E$6=ng2l,'Engine emission factors'!$H9,IF($E$6=pro,'Engine emission factors'!$I9,IF($E$6=select,'Engine emission factors'!$AA9)))))))) -> 0.0000 | H25: 0.00 | I25: 0.00 | J25: 1.0
B26: VOC | G26: =IF($E$6=rd,IF($E$8>=600,'Engine emission factors'!$C10,'Engine emission factors'!$B10),IF($E$6=rg,'Engine emission factors'!$E10,IF($E$6=tng,'Engine emission factors'!$D10,IF($E$6=ngr,'Engine emission factors'!$F10,IF($E$6=ngl,'Engine emission factors'!$G10,IF($E$6=ng2l,'Engine emission factors'!$H10,IF($E$6=pro,'Engine emission factors'!$I10,IF($E$6=select,'Engine emission factors'!$AA10)))))))) -> 0.0000 | H26: 0.00 | I26: 0.00 | J26: 1.0
B27: CO | G27: =IF($E$6=rd,IF($E$8>=600,'Engine emission factors'!$C11,'Engine emission factors'!$B11),IF($E$6=rg,'Engine emission factors'!$E11,IF($E$6=tng,'Engine emission factors'!$D11,IF($E$6=ngr,'Engine emission factors'!$F11,IF($E$6=ngl,'Engine emission factors'!$G11,IF($E$6=ng2l,'Engine emission factors'!$H11,IF($E$6=pro,'Engine emission factors'!$I11,IF($E$6=select,'Engine emission factors'!$AA11)))))))) -> 0.0000 | H27: 0.00 | I27: 0.00 | J27: 2.0
B28: Lead | G28: n/a | H28: 0.00 | I28: 0.00
B29: Greenhouse Gas Emissions | I29: Source: 40 CFR 98, Subp. C, Table C-1 and C-2
B30: CO2 2 | C30: 1 | G30: =IF($E$6=rd,IF($E$8>=600,'Engine emission factors'!$C13,'Engine emission factors'!$B13),IF($E$6=rg,'Engine emission factors'!$E13,IF($E$6=tng,'Engine emission factors'!$D13,IF($E$6=ngr,'Engine emission factors'!$F13,IF($E$6=ngl,'Engine emission factors'!$G13,IF($E$6=ng2l,'Engine emission factors'!$H13,IF($E$6=pro,'Engine emission factors'!$I13,IF($E$6=select,'Engine emission factors'!$AA13)))))))) -> 0.0000 | H30: =$D$19*$F$19*$G30/2000 -> 0.00 | I30: =($E$19*$G30)/2000 -> 0.00
B31: CH4 2 | C31: 25 | G31: =IF($E$6=rd,IF($E$8>=600,'Engine emission factors'!$C14,'Engine emission factors'!$B14),IF($E$6=rg,'Engine emission factors'!$E14,IF($E$6=tng,'Engine emission factors'!$D14,IF($E$6=ngr,'Engine emission factors'!$F14,IF($E$6=ngl,'Engine emission factors'!$G14,IF($E$6=ng2l,'Engine emission factors'!$H14,IF($E$6=pro,'Engine emission factors'!$I14,IF($E$6=select,'Engine emission factors'!$AA14)))))))) -> 0.0000 | H31: =$D$19*$F$19*$G31/2000 -> 0.0000 | I31: =($E$19*$G31)/2000 -> 0.0000
B32: N2O 2 | C32: 298 | G32: =IF($E$6=rd,IF($E$8>=600,'Engine emission factors'!$C15,'Engine emission factors'!$B15),IF($E$6=rg,'Engine emission factors'!$E15,IF($E$6=tng,'Engine emission factors'!$D15,IF($E$6=ngr,'Engine emission factors'!$F15,IF($E$6=ngl,'Engine emission factors'!$G15,IF($E$6=ng2l,'Engine emission factors'!$H15,IF($E$6=pro,'Engine emission factors'!$I15,IF($E$6=select,'Engine emission factors'!$Q15)))))))) -> 0.0000 | H32: =$D$19*$F$19*$G32/2000 -> 0.0000 | I32: =($E$19*$G32)/2000 -> 0.0000
F33: GHG total (CO2e) 2 | H33: =(C30*H30)+(C31*H31)+(C32*H32) -> 0.00 | I33: =(C30*I30)+(C31*I31)+(C32*I32) -> 0.00 | J33: 1000
B34: Hazardous Air Pollutants | G34: see engine emission factors tab
B35: 1,1,2,2-tetrachloroethane | G35: =IF($E$6=rd,IF($E$8>=600,'Engine emission factors'!$C17,'Engine emission factors'!$B17),IF($E$6=rg,'Engine emission factors'!$E17,IF($E$6=tng,'Engine emission factors'!$D17,IF($E$6=ngr,'Engine emission factors'!$F17,IF($E$6=ngl,'Engine emission factors'!$G17,IF($E$6=ng2l,'Engine emission factors'!$H17,IF($E$6=pro,'Engine emission factors'!$I17,IF($E$6=select,'Engine emission factors'!$Q17)))))))) -> 0.0000 | H35: =$D$19*$F$19*$G35/2000 -> 0.0000 | I35: =($E$19*$G35)/2000 -> 0.0000
B36: 1,1,2-trichloroethane | G36: =IF($E$6=rd,IF($E$8>=600,'Engine emission factors'!$C18,'Engine emission factors'!$B18),IF($E$6=rg,'Engine emission factors'!$E18,IF($E$6=tng,'Engine emission factors'!$D18,IF($E$6=ngr,'Engine emission factors'!$F18,IF($E$6=ngl,'Engine emission factors'!$G18,IF($E$6=ng2l,'Engine emission factors'!$H18,IF($E$6=pro,'Engine emission factors'!$I18,IF($E$6=select,'Engine emission factors'!$Q18)))))))) -> 0.0000 | H36: 0.0000 | I36: =($E$19*$G36)/2000 -> 0.0000
B37: 1,3-butadiene | G37: =IF($E$6=rd,IF($E$8>=600,'Engine emission factors'!$C19,'Engine emission factors'!$B19),IF($E$6=rg,'Engine emission factors'!$E19,IF($E$6=tng,'Engine emission factors'!$D19,IF($E$6=ngr,'Engine emission factors'!$F19,IF($E$6=ngl,'Engine emission factors'!$G19,IF($E$6=ng2l,'Engine emission factors'!$H19,IF($E$6=pro,'Engine emission factors'!$I19,IF($E$6=select,'Engine emission factors'!$Q19)))))))) -> 0.0000 | H37: 0.0000 | I37: 0.0000
B38: 1,3-dichloropropene | G38: =IF($E$6=rd,IF($E$8>=600,'Engine emission factors'!$C20,'Engine emission factors'!$B20),IF($E$6=rg,'Engine emission factors'!$E20,IF($E$6=tng,'Engine emission factors'!$D20,IF($E$6=ngr,'Engine emission factors'!$F20,IF($E$6=ngl,'Engine emission factors'!$G20,IF($E$6=ng2l,'Engine emission factors'!$H20,IF($E$6=pro,'Engine emission factors'!$I20,IF($E$6=select,'Engine emission factors'!$AA20)))))))) -> 0.0000 | H38: 0.0000 | I38: 0.0000
B39: Acetaldehyde | G39: =IF($E$6=rd,IF($E$8>=600,'Engine emission factors'!$C21,'Engine emission factors'!$B21),IF($E$6=rg,'Engine emission factors'!$E21,IF($E$6=tng,'Engine emission factors'!$D21,IF($E$6=ngr,'Engine emission factors'!$F21,IF($E$6=ngl,'Engine emission factors'!$G21,IF($E$6=ng2l,'Engine emission factors'!$H21,IF($E$6=pro,'Engine emission factors'!$I21,IF($E$6=select,'Engine emission factors'!$AA21)))))))) -> 0.0000 | H39: 0.0000 | I39: 0.0000
B40: Acrolein | G40: =IF($E$6=rd,IF($E$8>=600,'Engine emission factors'!$C22,'Engine emission factors'!$B22),IF($E$6=rg,'Engine emission factors'!$E22,IF($E$6=tng,'Engine emission factors'!$D22,IF($E$6=ngr,'Engine emission factors'!$F22,IF($E$6=ngl,'Engine emission factors'!$G22,IF($E$6=ng2l,'Engine emission factors'!$H22,IF($E$6=pro,'Engine emission factors'!$I22,IF($E$6=select,'Engine emission factors'!$AA22)))))))) -> 0.0000 | H40: 0.0000 | I40: 0.0000
B41: Benzene | G41: =IF($E$6=rd,IF($E$8>=600,'Engine emission factors'!$C23,'Engine emission factors'!$B23),IF($E$6=rg,'Engine emission factors'!$E23,IF($E$6=tng,'Engine emission factors'!$D23,IF($E$6=ngr,'Engine emission factors'!$F23,IF($E$6=ngl,'Engine emission factors'!$G23,IF($E$6=ng2l,'Engine emission factors'!$H23,IF($E$6=pro,'Engine emission factors'!$I23,IF($E$6=select,'Engine emission factors'!$AA23)))))))) -> 0.0000 | H41: 0.0000 | I41: 0.0000
B42: Biphenyl | G42: =IF($E$6=rd,IF($E$8>=600,'Engine emission factors'!$C24,'Engine emission factors'!$B24),IF($E$6=rg,'Engine emission factors'!$E24,IF($E$6=tng,'Engine emission factors'!$D24,IF($E$6=ngr,'Engine emission factors'!$F24,IF($E$6=ngl,'Engine emission factors'!$G24,IF($E$6=ng2l,'Engine emission factors'!$H24,IF($E$6=pro,'Engine emission factors'!$I24,IF($E$6=select,'Engine emission factors'!$AA24)))))))) -> 0.0000 | H42: 0.0000 | I42: 0.0000
B43: Carbon tetrachloride | G43: =IF($E$6=rd,IF($E$8>=600,'Engine emission factors'!$C25,'Engine emission factors'!$B25),IF($E$6=rg,'Engine emission factors'!$E25,IF($E$6=tng,'Engine emission factors'!$D25,IF($E$6=ngr,'Engine emission factors'!$F25,IF($E$6=ngl,'Engine emission factors'!$G25,IF($E$6=ng2l,'Engine emission factors'!$H25,IF($E$6=pro,'Engine emission factors'!$I25,IF($E$6=select,'Engine emission factors'!$AA25)))))))) -> 0.0000 | H43: 0.0000 | I43: 0.0000
B44: Chlorobenzene | G44: =IF($E$6=rd,IF($E$8>=600,'Engine emission factors'!$C26,'Engine emission factors'!$B26),IF($E$6=rg,'Engine emission factors'!$E26,IF($E$6=tng,'Engine emission factors'!$D26,IF($E$6=ngr,'Engine emission factors'!$F26,IF($E$6=ngl,'Engine emission factors'!$G26,IF($E$6=ng2l,'Engine emission factors'!$H26,IF($E$6=pro,'Engine emission factors'!$I26,IF($E$6=select,'Engine emission factors'!$AA26)))))))) -> 0.0000 | H44: 0.0000 | I44: 0.0000
B45: Chloroform | G45: =IF($E$6=rd,IF($E$8>=600,'Engine emission factors'!$C27,'Engine emission factors'!$B27),IF($E$6=rg,'Engine emission factors'!$E27,IF($E$6=tng,'Engine emission factors'!$D27,IF($E$6=ngr,'Engine emission factors'!$F27,IF($E$6=ngl,'Engine emission factors'!$G27,IF($E$6=ng2l,'Engine emission factors'!$H27,IF($E$6=pro,'Engine emission factors'!$I27,IF($E$6=select,'Engine emission factors'!$AA27)))))))) -> 0.0000 | H45: 0.0000 | I45: 0.0000
B46: Ethylbenzene | G46: =IF($E$6=rd,IF($E$8>=600,'Engine emission factors'!$C28,'Engine emission factors'!$B28),IF($E$6=rg,'Engine emission factors'!$E28,IF($E$6=tng,'Engine emission factors'!$D28,IF($E$6=ngr,'Engine emission factors'!$F28,IF($E$6=ngl,'Engine emission factors'!$G28,IF($E$6=ng2l,'Engine emission factors'!$H28,IF($E$6=pro,'Engine emission factors'!$I28,IF($E$6=select,'Engine emission factors'!$AA28)))))))) -> 0.0000 | H46: 0.0000 | I46: 0.0000
B47: Ethylene dibromide | G47: =IF($E$6=rd,IF($E$8>=600,'Engine emission factors'!$C29,'Engine emission factors'!$B29),IF($E$6=rg,'Engine emission factors'!$E29,IF($E$6=tng,'Engine emission factors'!$D29,IF($E$6=ngr,'Engine emission factors'!$F29,IF($E$6=ngl,'Engine emission factors'!$G29,IF($E$6=ng2l,'Engine emission factors'!$H29,IF($E$6=pro,'Engine emission factors'!$I29,IF($E$6=select,'Engine emission factors'!$AA29)))))))) -> 0.0000 | H47: 0.0000 | I47: 0.0000
B48: Formaldehyde | G48: =IF($E$6=rd,IF($E$8>=600,'Engine emission factors'!$C30,'Engine emission factors'!$B30),IF($E$6=rg,'Engine emission factors'!$E30,IF($E$6=tng,'Engine emission factors'!$D30,IF($E$6=ngr,'Engine emission factors'!$F30,IF($E$6=ngl,'Engine emission factors'!$G30,IF($E$6=ng2l,'Engine emission factors'!$H30,IF($E$6=pro,'Engine emission factors'!$I30,IF($E$6=select,'Engine emission factors'!$AA30)))))))) -> 0.0000 | H48: 0.0000 | I48: 0.0000
B49: Hexane | G49: =IF($E$6=rd,IF($E$8>=600,'Engine emission factors'!$C31,'Engine emission factors'!$B31),IF($E$6=rg,'Engine emission factors'!$E31,IF($E$6=tng,'Engine emission factors'!$D31,IF($E$6=ngr,'Engine emission factors'!$F31,IF($E$6=ngl,'Engine emission factors'!$G31,IF($E$6=ng2l,'Engine emission factors'!$H31,IF($E$6=pro,'Engine emission factors'!$I31,IF($E$6=select,'Engine emission factors'!$AA31)))))))) -> 0.0000 | H49: 0.0000 | I49: 0.0000
B50: Methanol | G50: =IF($E$6=rd,IF($E$8>=600,'Engine emission factors'!$C32,'Engine emission factors'!$B32),IF($E$6=rg,'Engine emission factors'!$E32,IF($E$6=tng,'Engine emission factors'!$D32,IF($E$6=ngr,'Engine emission factors'!$F32,IF($E$6=ngl,'Engine emission factors'!$G32,IF($E$6=ng2l,'Engine emission factors'!$H32,IF($E$6=pro,'Engine emission factors'!$I32,IF($E$6=select,'Engine emission factors'!$AA32)))))))) -> 0.0000 | H50: 0.0000 | I50: 0.0000
B51: Methylene chloride | G51: =IF($E$6=rd,IF($E$8>=600,'Engine emission factors'!$C33,'Engine emission factors'!$B33),IF($E$6=rg,'Engine emission factors'!$E33,IF($E$6=tng,'Engine emission factors'!$D33,IF($E$6=ngr,'Engine emission factors'!$F33,IF($E$6=ngl,'Engine emission factors'!$G33,IF($E$6=ng2l,'Engine emission factors'!$H33,IF($E$6=pro,'Engine emission factors'!$I33,IF($E$6=select,'Engine emission factors'!$AA33)))))))) -> 0.0000 | H51: 0.0000 | I51: 0.0000
B52: Naphthalene | G52: =IF($E$6=rd,IF($E$8>=600,'Engine emission factors'!$C34,'Engine emission factors'!$B34),IF($E$6=rg,'Engine emission factors'!$E34,IF($E$6=tng,'Engine emission factors'!$D34,IF($E$6=ngr,'Engine emission factors'!$F34,IF($E$6=ngl,'Engine emission factors'!$G34,IF($E$6=ng2l,'Engine emission factors'!$H34,IF($E$6=pro,'Engine emission factors'!$I34,IF($E$6=select,'Engine emission factors'!$AA34)))))))) -> 0.0000 | H52: 0.0000 | I52: 0.0000
B53: PAH | G53: =IF($E$6=rd,IF($E$8>=600,'Engine emission factors'!$C35,'Engine emission factors'!$B35),IF($E$6=rg,'Engine emission factors'!$E35,IF($E$6=tng,'Engine emission factors'!$D35,IF($E$6=ngr,'Engine emission factors'!$F35,IF($E$6=ngl,'Engine emission factors'!$G35,IF($E$6=ng2l,'Engine emission factors'!$H35,IF($E$6=pro,'Engine emission factors'!$I35,IF($E$6=select,'Engine emission factors'!$AA35)))))))) -> 0.0000 | H53: 0.0000 | I53: 0.0000
B54: Phenol | G54: =IF($E$6=rd,IF($E$8>=600,'Engine emission factors'!$C36,'Engine emission factors'!$B36),IF($E$6=rg,'Engine emission factors'!$E36,IF($E$6=tng,'Engine emission factors'!$D36,IF($E$6=ngr,'Engine emission factors'!$F36,IF($E$6=ngl,'Engine emission factors'!$G36,IF($E$6=ng2l,'Engine emission factors'!$H36,IF($E$6=pro,'Engine emission factors'!$I36,IF($E$6=select,'Engine emission factors'!$AA36)))))))) -> 0.0000 | H54: 0.0000 | I54: 0.0000
B55: Styrene | G55: =IF($E$6=rd,IF($E$8>=600,'Engine emission factors'!$C37,'Engine emission factors'!$B37),IF($E$6=rg,'Engine emission factors'!$E37,IF($E$6=tng,'Engine emission factors'!$D37,IF($E$6=ngr,'Engine emission factors'!$F37,IF($E$6=ngl,'Engine emission factors'!$G37,IF($E$6=ng2l,'Engine emission factors'!$H37,IF($E$6=pro,'Engine emission factors'!$I37,IF($E$6=select,'Engine emission factors'!$AA37)))))))) -> 0.0000 | H55: 0.0000 | I55: 0.0000
B56: Tetrachloroethane | G56: =IF($E$6=rd,IF($E$8>=600,'Engine emission factors'!$C38,'Engine emission factors'!$B38),IF($E$6=rg,'Engine emission factors'!$E38,IF($E$6=tng,'Engine emission factors'!$D38,IF($E$6=ngr,'Engine emission factors'!$F38,IF($E$6=ngl,'Engine emission factors'!$G38,IF($E$6=ng2l,'Engine emission factors'!$H38,IF($E$6=pro,'Engine emission factors'!$I38,IF($E$6=select,'Engine emission factors'!$AA38)))))))) -> 0.0000 | H56: 0.0000 | I56: 0.0000
B57: Toluene | G57: =IF($E$6=rd,IF($E$8>=600,'Engine emission factors'!$C39,'Engine emission factors'!$B39),IF($E$6=rg,'Engine emission factors'!$E39,IF($E$6=tng,'Engine emission factors'!$D39,IF($E$6=ngr,'Engine emission factors'!$F39,IF($E$6=ngl,'Engine emission factors'!$G39,IF($E$6=ng2l,'Engine emission factors'!$H39,IF($E$6=pro,'Engine emission factors'!$I39,IF($E$6=select,'Engine emission factors'!$AA39)))))))) -> 0.0000 | H57: 0.0000 | I57: 0.0000
B58: Vinyl chloride | G58: =IF($E$6=rd,IF($E$8>=600,'Engine emission factors'!$C40,'Engine emission factors'!$B40),IF($E$6=rg,'Engine emission factors'!$E40,IF($E$6=tng,'Engine emission factors'!$D40,IF($E$6=ngr,'Engine emission factors'!$F40,IF($E$6=ngl,'Engine emission factors'!$G40,IF($E$6=ng2l,'Engine emission factors'!$H40,IF($E$6=pro,'Engine emission factors'!$I40,IF($E$6=select,'Engine emission factors'!$AA40)))))))) -> 0.0000 | H58: 0.0000 | I58: 0.0000
B59: Xylene | G59: =IF($E$6=rd,IF($E$8>=600,'Engine emission factors'!$C41,'Engine emission factors'!$B41),IF($E$6=rg,'Engine emission factors'!$E41,IF($E$6=tng,'Engine emission factors'!$D41,IF($E$6=ngr,'Engine emission factors'!$F41,IF($E$6=ngl,'Engine emission factors'!$G41,IF($E$6=ng2l,'Engine emission factors'!$H41,IF($E$6=pro,'Engine emission factors'!$I41,IF($E$6=select,'Engine emission factors'!$AA41)))))))) -> 0.0000 | H59: 0.0000 | I59: 0.0000
F60: HAP total | H60: =SUM(H35:H59) -> 0.0000 | I60: =SUM(I35:I59) -> 0.0000
B61: 1 Global Warming Potential from 40 CFR Part 98, Subpart A, Table A-1
B62: 2 CO2e = carbon dioxide equivalents
B63: 3 Routine = 24 hr/day * 365 day/yr or 8760 hr/yr; Emergency = 500 hr/yr for purposes of calculating potential air emission to identify whether or not a permit is required.
B64: 4 See information on insignificant activities at Minn. R. 7007.1300 and on the 'Permits & Requirements' tab. | G64: Minn. R. 7007.1300

Sheet Fugitive
B1: =Instructions!G2 -> p-sbap5-30 • 7/31/25
B2: Air emissions from fugitive sources
B3: Fugitive emissions1
B4: Potential emissions
B5: Your potential emissions from fugitive sources must be used in identifying whether a permit is required. Fugitive sources include unpaved roads, material handling at stockpiles, and wind erosion of ground piles.
B7: More information on fugitive dust emissions management and best practices can be found here:
B8: https://www.pca.state.mn.us/sites/default/files/p-sbap5-45.pdf
C10: Throughput (maximum capacity) | E10: <-------- The maximum throughput used on the aggregate tab for potential emissions is automatically entered here.
C11: =SUM(Aggregate!E28:E34) -> 0 | D11: tons/year
B13: Actual emissions
B14: Are you applying for or have an Option D registration permit?
B15: If… | C15: Then…
B16: Yes | C16: You are required… | E16: …to calculate actual emissions from fugitive sources (unpaved roads, material handling for stockpiles, and wind erosion of ground piles). Enter actual throughput for each activity below.
B18: No | C18: You are not required…
C21: Throughput (actual amount) | E21: <-------- The actual amount of aggregate processed which, you entered into the aggregate tab, is used here.
C22: =SUM(Aggregate!D46:D52) -> 0 | D22: tons/year
B24: Unpaved road2
B25: Enter the data for your trucks below to calculate unpaved road emissions.
D26: Vehicle 1 | E26: Vehicle 2 | K26: Table A. Typical silt content values of surface material on industrial unpaved roads
B27: % of total trips made by vehicle | D27: 0% | E27: 0% | F27: W = mean vehicle weight (ton) | I27: =D27*((D28+D29)/2)+E27*((E28+E29)/2) -> 0.0 | K27: AP-42 Table 13.2.2-1
B28: Empty weight of vehicle (tons) | D28: 0 | E28: 0 | F28: Vpotential = # vehicle trips / yr | I28: =IFERROR(IF(($C$11/((Fugitive!D27*(Fugitive!D29-Fugitive!D28))+(Fugitive!E27*(Fugitive!E29-Fugitive!E28))))=0,0,IF(($C$11/((Fugitive!D27*(Fugitive!D29-Fugitive!D28))+(Fugitive!E27*(Fugitive!E29-Fugitive!E28))))>0,($C$11/((Fugitive!D27*(Fugitive!D29-Fugitive!D28))+(Fugitive!E27*(Fugitive!E29-Fugitive!E28)))))),0) -> 0 | K28: Industry | L28: Road use | M28: Mean Silt Content (%)
B29: Full weight of loaded vehicle (tons) | D29: 0 | E29: 0 | F29: Vactual = # vehicle trips / yr | I29: =IFERROR(IF(((C22)/((Fugitive!D27*(Fugitive!D29-Fugitive!D28))+(Fugitive!E27*(Fugitive!E29-Fugitive!E28))))=0,0,IF((C22)/((Fugitive!D27*(Fugitive!D29-Fugitive!D28))+(Fugitive!E27*(Fugitive!E29-Fugitive!E28)))>0,((C22)/((Fugitive!D27*(Fugitive!D29-Fugitive!D28))+(Fugitive!E27*(Fugitive!E29-Fugitive!E28)))))),0) -> 0 | K29: Copper smelting | L29: Plant road | M29: 17
B30: S = speed on unpaved road, mph | D30: 0 | K30: Iron and steel production | L30: Plant road | M30: 6
B31: m = miles of unpaved road per trip | D31: 0 | E31: Potential Vehicle Miles Traveled (VMT)/yr = Vpotential x miles | I31: =IF((I28*D31)>0,(I28*D31),0) -> 0.00 | K31: Sand and gravel processing | L31: Plant road | M31: 4.8
B32: M = surface moisture content (%) | D32: 0.5 | E32: Enter site data9,10 | H32: Actual Vehicle Miles Traveled (VMT)/yr = Vactual x miles | I32: =IF((I29*D31)>0,(I29*D31),0) -> 0.00 | L32: Material storage area | M32: 7.1
B33: s = silt content of road (%) | D33: Enter from Table | E33: See Table A | K33: Stone quarrying and processing | L33: Plant road | M33: 10
B34: p = # of days w/ >=0.01" precip/yr | D34: =(133+121+115+109+108)/5 -> 117.2 | E34: 4 | F34: Unpaved road emission factor equation3 | L34: Haul road to/from pit | M34: 8.3
B35: k = PM particle size multiplier | D35: 6 | E35: PM emission factor (lb/VMT) | I35: =IFERROR((((D35*((D33/12)^1)*((D30/30)^0.3)/((D32/0.5)^0.3))-0.00047)*((365-D34)/365)),0) -> 0.00 | K35: Taconite mining and processing | L35: Plant road | M35: 4.3
B36: k10 = PM10 particle size multiplier | D36: 1.8 | E36: PM10 emission factor (lb/VMT) | I36: =IFERROR((((D36*((D33/12)^1)*((D30/30)^0.5)/((D32/0.5)^0.2))-0.00047)*((365-D34)/365)),0) -> 0.00 | L36: Haul road to/from pit | M36: 5.8
B37: k2.5 = PM2.5 particle size multiplier | D37: 0.18 | G37: PM2.5 emission factor (lb/VMT) | I37: =IFERROR((((D37*((D33/12)^1)*((D30/30)^0.5)/((D32/0.5)^0.2))-0.00036)*((365-D34)/365)),0) -> 0.00 | K37: Western surface coal mining | L37: Plant road | M37: 5.1
L38: Haul road to/from pit | M38: 8.4
L39: Scraper route | M39: 17
L40: Haul road (freshly graded) | M40: 24
K41: Construction sites | L41: Scraper routes | M41: 8.5
K42: Lumber sawmills | L42: Log yards | M42: 8.4
K43: Municipal solid waste landfills | L43: Disposal routes | M43: 6.4
B45: Material handling at stockpiles5
B46: k = PM particle size multiplier | D46: 0.74 | K46: Table B. Typical silt and moisture contents of materials at various industries | P46: Table C. Wind erosion of ground pile
B47: k10 = PM10 particle size multiplier | D47: 0.35 | E47: Material handling emission factor equation6 | K47: AP-42 Table 13.2.4-1 | P47: Values are over a 5-year period | T47: Percent of Hours Greater Than 12 mph | U47: Mean wind speed (mph) (2018-2022)
B48: k2.5 = PM2.5 particle size multiplier | D48: 0.053 | E48: PM emission factor (lb/ton) | I48: =IFERROR((D46*0.0032*(((D49/5)^1.3)/((D50/2)^1.4))),0) -> 0.0000 | K48: Industry | L48: Material | M48: Silt Content (%) | N48: Moisture Content (%) | P48: Station | Q48: City | R48: County | S48: State
B49: U = mean wind speed (mph) | D49: Enter from Table | E49: See Table B | H49: PM10 emission factor (lb/ton) | I49: =IFERROR((D47*0.0032*(((D49/5)^1.3)/((D50/2)^1.4))),0) -> 0.0000 | K49: Iron and steel production | L49: Pellet ore | M49: 4.3 | N49: 2.2 | P49: KRST | Q49: Rochester | R49: Olmsted | S49: MN | T49: 40.9 | U49: 11.3
B50: M = material moisture content (%) | D50: Enter from Table | E50: See Table C | H50: PM2.5 emission factor (lb/ton) | I50: =IFERROR((D48*0.0032*(((D49/5)^1.3)/((D50/2)^1.4))),0) -> 0.0000 | L50: Lump ore | M50: 9.5 | N50: 5.4 | P50: KMML | Q50: Marshall | R50: Lyon | S50: MN | T50: 39.2 | U50: 11.7
L51: Coal | M51: 4.6 | N51: 4.8 | P51: KAXN | Q51: Alexandria | R51: Douglas | S51: MN | T51: 35.2 | U51: 10.1
B52: Wind erosion of ground pile7 | L52: Slag | M52: 5.3 | N52: 0.92 | P52: KDLH | Q52: Duluth Intl | R52: Saint Louis | S52: MN | T52: 33.5 | U52: 9.9
B53: d = # days pile is active per year | D53: 0 | L53: Flue dust | M53: 13 | N53: 7 | P53: KMKT | Q53: Mankato | R53: Blue Earth | S53: MN | T53: 31.2 | U53: 10.3
B54: a = acres of pile base | D54: 0 | E54: Wind erosion emission factor reference8, 9 | L54: Coke breeze | M54: 4.9 | N54: 7.8 | P54: KHCO | Q54: Hallock | R54: Kittson | S54: MN | T54: 31.2 | U54: --
B55: s = silt content of material (%) | D55: Enter from Table | E55: See Table B | H55: PM emission factor (lb/day*acre) | I55: =IFERROR((1.7*(D55/1.5)*((365-D57)/235)*(D56/15)),0) -> 0.00 | L55: Blended ore | M55: 15 | N55: 6.6 | P55: KRWF | Q55: Redwood Falls | R55: Redwood | S55: MN | T55: 30.5 | U55: 9.6
B56: f = % wind > 12 mph at pile height | D56: Enter from Table | E56: See Table C or enter 43.1 | H56: PM10 emission factor = PM * 50% | I56: =I55*0.5 -> 0.00 | L56: Sinter | M56: 0.7 | N56: -- | P56: KMSP | Q56: Minneapolis | R56: Hennepin | S56: MN | T56: 28.2 | U56: 9.0
B57: p = # of days w/ >=0.01" precip/yr | D57: =(133+121+115+109+108)/5 -> 117.2 | E57: 4 | I57: =I56*0.075 -> 0.00 | L57: Limestone | M57: 1 | N57: 0.2 | P57: KPKD | Q57: Park Rapids | R57: Hubbard | S57: MN | T57: 27.2 | U57: 8.7
K58: Stone quarrying and processing | L58: Crushed limestone | M58: 1.6 | N58: 0.7 | P58: KSTP | Q58: St Paul | R58: Ramsey | S58: MN | T58: 24.9 | U58: 8.3
B59: Fugitive emission totals | L59: Various limestone products | M59: 3.9 | N59: 2.1 | P59: KBDE | Q59: Baudette | R59: Lake of the Woods | S59: MN | T59: 24.8 | U59: 8.4
B60: Potential fugitive emissions | C60: Unpaved road | E60: Material handling at stockpiles | G60: Wind erosion of ground pile | K60: Taconite mining and processing | L60: Pellets | M60: 3.4 | N60: 0.9 | P60: KFCM | Q60: Eden Prarie | R60: Hennepin | S60: MN | T60: 23 | U60: 8.3
C61: (VMT/yr) | E61: (ton/yr) | G61: (365d*a/yr) | L61: Tailings | M61: 11 | N61: 0.4 | P61: KSTC | Q61: St Cloud | R61: Sherburne | S61: MN | T61: 22.7 | U61: 7.9
C62: =I31 -> 0 | E62: =C11 -> 0 | G62: =D54*365 -> 0 | I62: Total potential emissions | K62: Western surface coal mining | L62: Coal | M62: 6.2 | N62: 6.9 | P62: KMIC | Q62: Crystal | R62: Hennepin | S62: MN | T62: 21.7 | U62: 7.8
C63: Emission factor | D63: Potential | E63: Emission factor | F63: Potential | G63: Emission factor | H63: Potential | L63: Overburden | M63: 7.5 | N63: -- | P63: KBRD | Q63: Brainerd | R63: Crow Wing | S63: MN | T63: 20.9 | U63: 7.7
C64: (lb/VMT) | D64: (ton/yr) | E64: (lb/ton) | F64: (ton/yr) | G64: (lb/d*acre) | H64: (ton/yr) | I64: (ton/year) | L64: Exposed ground | M64: 15 | N64: 3.4 | P64: KHIB | Q64: Hibbing | R64: Saint Louis | S64: MN | T64: 15.8 | U64: 6.6
B65: PM | C65: =I35 -> 0.00 | D65: =C62*C65/2000 -> 0.00 | E65: =I48 -> 0.0000 | F65: =E62*E65/2000 -> 0.00 | G65: =I55 -> 0.00 | H65: =G65*$G$62/2000 -> 0.00 | I65: =(D65+F65+H65) -> 0.00 | K65: Coal-fired power plant | L65: Coal ( as received) | M65: 2.2 | N65: 4.5 | P65: KINL | Q65: International Falls | R65: Koochiching | S65: MN | T65: 13.5 | U65: 6.8
B66: PM10 | C66: =I36 -> 0.00 | D66: =C62*C66/2000 -> 0.00 | E66: =I49 -> 0.0000 | F66: =E62*E66/2000 -> 0.00 | G66: =I56 -> 0.00 | H66: =G66*$G$62/2000 -> 0.00 | I66: =(D66+F66+H66) -> 0.00 | K66: Municipal solid waste landfills | L66: Sand | M66: 2.6 | N66: 7.4 | P66: KEST | Q66: Estherville | R66: Emmet | S66: IA | T66: 43.1 | U66: 11.7
B67: PM2.5 | C67: =I37 -> 0.00 | D67: =C62*C67/2000 -> 0.00 | E67: =I50 -> 0.0000 | F67: =E62*E67/2000 -> 0.00 | G67: =I57 -> 0.00 | H67: 0.00 | I67: =(D67+F67+H67) -> 0.00 | L67: Slag | M67: 3.8 | N67: 3.6 | P67: KMCW | Q67: Mason City | R67: Cerro Gordo | S67: IA | T67: 40.5 | U67: 11.0
L68: Cover | M68: 9 | N68: 12 | P68: KFAR | Q68: Fargo | R68: Cass | S68: ND | T68: 40.3 | U68: 10.9
L69: Clay/dirt mix | M69: 9.2 | N69: 14 | P69: KGFK | Q69: Grand Forks | R69: Grand Forks | S69: ND | T69: 38.1 | U69: 10.7
B70: Actual fugitive emissions | C70: Unpaved road | E70: Material handling at stockpiles | G70: Wind erosion of ground pile | L70: Clay | M70: 6 | N70: 10 | P70: KFSD | Q70: Sioux Falls | R70: Minnehaha | S70: SD | T70: 35.2 | U70: 9.9
C71: (VMT/yr) | E71: (ton/yr) | G71: (d*a/yr) | L71: Fly ash | M71: 80 | N71: 27 | P71: KLSE | Q71: La Crosse | R71: La Crosse | S71: WI | T71: 22 | U71: 8.1
C72: =I32 -> 0 | E72: =C22 -> 0 | G72: =D53*D54 -> 0 | I72: Total actual emissions | L72: Misc. fill materials | M72: 12 | N72: 11
C73: Emission factor | D73: Actual | E73: Emission factor | F73: Actual | G73: Emission factor | H73: Actual
C74: (lb/VMT) | D74: (ton/yr) | E74: (lb/ton) | F74: (ton/yr) | G74: (lb/d*acre) | H74: (ton/yr) | I74: (ton/year)
B75: PM | C75: =I35 -> 0.00 | D75: =C72*C75/2000 -> 0.00 | E75: =E65 -> 0.0000 | F75: =E72*E75/2000 -> 0.00 | G75: =I55 -> 0.00 | H75: =$G$72*G75/2000 -> 0.00 | I75: =D75+F75+H75 -> 0.00
B76: PM10 | C76: =I36 -> 0.00 | D76: =C72*C76/2000 -> 0.00 | E76: =E66 -> 0.0000 | F76: =E72*E76/2000 -> 0.00 | G76: =I56 -> 0.00 | H76: =$G$72*G76/2000 -> 0.00 | I76: =D76+F76+H76 -> 0.00
B77: PM2.5 | C77: =I37 -> 0.00 | D77: =C72*C77/2000 -> 0.00 | E77: =E67 -> 0.0000 | F77: =E72*E77/2000 -> 0.00 | G77: =I57 -> 0.00 | H77: 0.00 | I77: =D77+F77+H77 -> 0.00
B79: 1 Sources: | C79: Minn. Rule 7007.0200 Subpart 2. B. | E79: Minn. Rule 7007.1130 Subpart 4. | G79: Minn. Rule 7007.1300 Subpart 3. J.
B80: 2 Unpaved road emissions reference sources: | E80: Source: AP-42 13.2.2 (11/2006)
B81: 3 Unpaved road particulate matter emission factor equation (lb/VMT) | F81: PM = {{[k[(s/12)^1][(S/30)^0.3)]/[(M/0.5)^0.3]}-0.00047}*(365-p/365)
B82: PM-10 = {{[k[(s/12)^1][(S/30)^0.5)]/[(M/0.5)^0.2]}-0.00047}*(365-p/365) | F82: PM-10 = {{[k[(s/12)^1][(S/30)^0.5)]/[(M/0.5)^0.2]}-0.00036}*(365-p/365)
B83: 4 Average across MN precipitation data in Comparative Climatic Data (CCD-2015) tables, page 42.
B84: 5 Stockpile reference | D84: Source: AP-42 13.2.4 (11/2006)
B85: 6 Stockpile emission factor equation (lb/ton) = k(0.0032)((U/5)1.3/(M/2)1.4)
B86: 7 Wind erosion from continuously active piles
B87: EPA Control of open fugitive dust sources, Sept. 1988, Equation 4-9
B88: 8 Wind erosion emission factor equation (lb/day/acre)=1.7(s/1.5)((365-p)/235)(f/15)
B89: 9 PM10 and PM2.5 fractions, updated Nov 2006
B90: AP-42 13.2.5 Aerodynamic particle size multipliers for Equation 2
B91: 10 Default moisture content value of 0.5 percent in Equation 1b is discouraged and reduces emission factor quality by 2 letters.

Sheet Potential emissions
B1: =Instructions!G2 -> p-sbap5-30 • 7/31/25
B2: Potential emissions - Aggregate: sand & gravel
B3: =IF('Data validation'!C22="yes","The flag next to a potential emission total means your potential emissions exceed the permitting threshold and a permit is required.","These pollutant totals represent the information you entered into this calculator.") -> These pollutant totals represent the information you entered into this calculator.
B4: Pollutant | C4: Aggregate | D4: Crusher Engine | E4: Generator | F4: Fugitives | G4: Potential Emissions | H4: Permitting Threshold
C6: (ton/yr) | D6: (ton/yr) | E6: (ton/yr) | F6: (ton/yr) | G6: (ton/yr) | H6: (ton/yr)
B7: Criteria Air Pollutants
B8: PM | C8: =Aggregate!G35 -> 0.00 | D8: ='Crusher Engine'!H21 -> 0.00 | E8: =Generator!H21 -> 0.00 | F8: =Fugitive!I65 -> 0.00 | G8: =SUM(C8:F8) -> 0.00 | H8: 100
B9: PM10 | C9: =Aggregate!I35 -> 0.00 | D9: ='Crusher Engine'!H22 -> 0.00 | E9: =Generator!H22 -> 0.00 | F9: =Fugitive!I66 -> 0.00 | G9: 0.00 | H9: 25
B10: PM2.5 | C10: =Aggregate!K35 -> 0.00 | D10: ='Crusher Engine'!H23 -> 0.00 | E10: =Generator!H23 -> 0.00 | F10: =Fugitive!I67 -> 0.00 | G10: 0.00 | H10: 100
B11: SOx | D11: ='Crusher Engine'!H24 -> 0.00 | E11: =Generator!H24 -> 0.00 | G11: 0.00 | H11: 50
B12: NOx | D12: ='Crusher Engine'!H25 -> 0.00 | E12: =Generator!H25 -> 0.00 | G12: 0.00 | H12: 100
B13: VOC | D13: ='Crusher Engine'!H26 -> 0.00 | E13: =Generator!H26 -> 0.00 | G13: 0.00 | H13: 100
B14: CO | D14: ='Crusher Engine'!H27 -> 0.00 | E14: =Generator!H27 -> 0.00 | G14: 0.00 | H14: 100
B15: Lead | D15: ='Crusher Engine'!H28 -> 0.00 | E15: =Generator!H28 -> 0.00 | G15: 0.00 | H15: 0.5
B16: Greenhouse Gas Emissions
B17: CO2 | D17: ='Crusher Engine'!H30 -> 0.00 | E17: =Generator!H30 -> 0.00 | G17: =SUM(C17:F17) -> 0.00
B18: CH4 | D18: ='Crusher Engine'!H31 -> 0.00 | E18: =Generator!H31 -> 0.00 | G18: =SUM(C18:F18) -> 0.0000
B19: N2O | D19: ='Crusher Engine'!H32 -> 0.00 | E19: =Generator!H32 -> 0.00 | G19: =SUM(C19:F19) -> 0.0000
B20: GHG Total CO2e | G20: =(G17*1)+(G18*25)+(G19*298) -> 0.00 | H20: 100000
B21: Hazardous Air Pollutants
B22: 1,1,2,2-tetrachloroethane | D22: ='Crusher Engine'!H35 -> 0.00 | E22: =Generator!H35 -> 0.00 | G22: =SUM(C22:F22) -> 0.0000
B23: 1,1,2-trichloroethane | D23: ='Crusher Engine'!H36 -> 0.00 | E23: =Generator!H36 -> 0.00 | G23: 0.0000
B24: 1,3-butadiene | D24: ='Crusher Engine'!H37 -> 0.00 | E24: =Generator!H37 -> 0.00 | G24: 0.0000
B25: 1,3-dichloropropene | D25: ='Crusher Engine'!H38 -> 0.00 | E25: =Generator!H38 -> 0.00 | G25: 0.0000
B26: Acetaldehyde | D26: ='Crusher Engine'!H39 -> 0.00 | E26: =Generator!H39 -> 0.00 | G26: 0.0000
B27: Acrolein | D27: ='Crusher Engine'!H40 -> 0.00 | E27: =Generator!H40 -> 0.00 | G27: 0.0000
B28: Benzene | D28: ='Crusher Engine'!H41 -> 0.00 | E28: =Generator!H41 -> 0.00 | G28: 0.0000
B29: Biphenyl | D29: ='Crusher Engine'!H42 -> 0.00 | E29: =Generator!H42 -> 0.00 | G29: 0.0000
B30: Carbon tetrachloride | D30: ='Crusher Engine'!H43 -> 0.00 | E30: =Generator!H43 -> 0.00 | G30: 0.0000
B31: Chlorobenzene | D31: ='Crusher Engine'!H44 -> 0.00 | E31: =Generator!H44 -> 0.00 | G31: 0.0000
B32: Chloroform | D32: ='Crusher Engine'!H45 -> 0.00 | E32: =Generator!H45 -> 0.00 | G32: 0.0000
B33: Ethylbenzene | D33: ='Crusher Engine'!H46 -> 0.00 | E33: =Generator!H46 -> 0.00 | G33: 0.0000
B34: Ethylene dibromide | D34: ='Crusher Engine'!H47 -> 0.00 | E34: =Generator!H47 -> 0.00 | G34: 0.0000
B35: Formaldehyde | D35: ='Crusher Engine'!H48 -> 0.00 | E35: =Generator!H48 -> 0.00 | G35: 0.0000
B36: Hexane | D36: ='Crusher Engine'!H49 -> 0.00 | E36: =Generator!H49 -> 0.00 | G36: =SUM(C36:F36) -> 0.0000
B37: Methanol | D37: ='Crusher Engine'!H50 -> 0.00 | E37: =Generator!H50 -> 0.00 | G37: 0.0000
B38: Methylene chloride | D38: ='Crusher Engine'!H51 -> 0.00 | E38: =Generator!H51 -> 0.00 | G38: 0.0000
B39: Naphthalene | D39: ='Crusher Engine'!H52 -> 0.00 | E39: =Generator!H52 -> 0.00 | G39: 0.0000
B40: PAH | D40: ='Crusher Engine'!H53 -> 0.00 | E40: =Generator!H53 -> 0.00 | G40: 0.0000
B41: Phenol | D41: ='Crusher Engine'!H54 -> 0.00 | E41: =Generator!H54 -> 0.00 | G41: 0.0000
B42: Styrene | D42: ='Crusher Engine'!H55 -> 0.00 | E42: =Generator!H55 -> 0.00 | G42: 0.0000
B43: Tetrachloroethane | D43: ='Crusher Engine'!H56 -> 0.00 | E43: =Generator!H56 -> 0.00 | G43: 0.0000
B44: Toluene | D44: ='Crusher Engine'!H57 -> 0.00 | E44: =Generator!H57 -> 0.00 | G44: 0.0000
B45: Vinyl chloride | D45: ='Crusher Engine'!H58 -> 0.00 | E45: =Generator!H58 -> 0.00 | G45: 0.0000
B46: Xylene | D46: ='Crusher Engine'!H59 -> 0.00 | E46: =Generator!H59 -> 0.00 | G46: 0.0000
B47: HAP Indiv. Max | C47: =IF(G47=G22,B22,IF(G47=G23,B23,IF(G47=G24,B24,IF(G47=G25,B25,IF(G47=G26,B26,IF(G47=G27,B27,IF(G47=G28,B28,IF(G47=G29,B29,IF(G47=G30,B30,IF(G47=G31,B31,IF(G47=G32,B32,IF(G47=G33,B33,IF(G47=G34,B34,IF(G47=G35,B35,IF(G47=G36,B36,IF(G47=G37,B37,IF(G47=G38,B38,IF(G47=G39,B39,IF(G47=G40,B40,IF(G47=G41,B41,IF(G47=G42,B42,IF(G47=G43,B43,IF(G47=G44,B44,IF(G47=G45,B45,IF(G47=G46,B46))))))))))))))))))))))))) -> 1,1,2,2-tetrachloroethane | G47: =MAX(G22:G46) -> 0.0000 | H47: 10
B48: HAP total | G48: =SUM(G22:G46) -> 0.00 | H48: 25

Sheet Actual emissions
B1: =Instructions!G2 -> p-sbap5-30 • 7/31/25
B2: Actual emissions - Aggregate: sand & gravel
B3: =IF('Data validation'!C25="yes","The flag next to your actual emissions total indicates that your business exceeds the Option D limit and an individual permit is required.","These pollutant totals represent the information you entered into this calculator.") -> These pollutant totals represent the information you entered into this calculator.
B4: Pollutant | C4: Aggregate | D4: Crusher Engine | E4: Generator | F4: Fugitives | G4: Actual Emissions | H4: Permitting Threshold
C6: (ton/yr) | D6: (ton/yr) | E6: (ton/yr) | F6: (ton/yr) | G6: (ton/yr) | H6: (ton/yr)
B7: Criteria Air Pollutants
B8: PM | C8: =Aggregate!F53 -> 0.00 | D8: ='Crusher Engine'!I21 -> 0.00 | E8: =Generator!I21 -> 0.00 | F8: =Fugitive!I75 -> 0.00 | G8: =SUM(C8:F8) -> 0.00 | H8: 50
B9: PM10 | C9: =Aggregate!H53 -> 0.00 | D9: ='Crusher Engine'!I22 -> 0.00 | E9: =Generator!I22 -> 0.00 | F9: =Fugitive!I76 -> 0.00 | G9: 0.00 | H9: 50
B10: PM2.5 | C10: =Aggregate!J53 -> 0.00 | D10: ='Crusher Engine'!I23 -> 0.00 | E10: =Generator!I23 -> 0.00 | F10: =Fugitive!I77 -> 0.00 | G10: 0.00 | H10: 50
B11: SOx | D11: ='Crusher Engine'!I24 -> 0.00 | E11: =Generator!I24 -> 0.00 | G11: 0.00 | H11: 50
B12: NOx | D12: ='Crusher Engine'!I25 -> 0.00 | E12: =Generator!I25 -> 0.00 | G12: 0.00 | H12: 50
B13: VOC | D13: ='Crusher Engine'!I26 -> 0.00 | E13: =Generator!I26 -> 0.00 | G13: 0.00 | H13: 50
B14: CO | D14: ='Crusher Engine'!I27 -> 0.00 | E14: =Generator!I27 -> 0.00 | G14: 0.00 | H14: 50
B15: Lead | D15: ='Crusher Engine'!I28 -> 0.00 | E15: =Generator!I28 -> 0.00 | G15: 0.00 | H15: 0.5
B16: Greenhouse Gas Emissions
B17: CO2 | D17: ='Crusher Engine'!I30 -> 0.00 | E17: =Generator!I30 -> 0.00 | G17: =SUM(C17:F17) -> 0.00
B18: CH4 | D18: ='Crusher Engine'!I31 -> 0.00 | E18: =Generator!I31 -> 0.00 | G18: =SUM(C18:F18) -> 0.0000
B19: N2O | D19: ='Crusher Engine'!I32 -> 0.00 | E19: =Generator!I32 -> 0.00 | G19: =SUM(C19:F19) -> 0.0000
B20: GHG Total CO2e | G20: =(G17*1)+(G18*25)+(G19*298) -> 0.00 | H20: 50000
B21: Hazardous Air Pollutants
B22: 1,1,2,2-tetrachloroethane | D22: ='Crusher Engine'!I35 -> 0.00 | E22: =Generator!I35 -> 0.00 | G22: =SUM(C22:F22) -> 0.0000
B23: 1,1,2-trichloroethane | D23: ='Crusher Engine'!I36 -> 0.00 | E23: =Generator!I36 -> 0.00 | G23: 0.0000
B24: 1,3-butadiene | D24: ='Crusher Engine'!I37 -> 0.00 | E24: =Generator!I37 -> 0.00 | G24: 0.0000
B25: 1,3-dichloropropene | D25: ='Crusher Engine'!I38 -> 0.00 | E25: =Generator!I38 -> 0.00 | G25: 0.0000
B26: Acetaldehyde | D26: ='Crusher Engine'!I39 -> 0.00 | E26: =Generator!I39 -> 0.00 | G26: 0.0000
B27: Acrolein | D27: ='Crusher Engine'!I40 -> 0.00 | E27: =Generator!I40 -> 0.00 | G27: 0.0000
B28: Benzene | D28: ='Crusher Engine'!I41 -> 0.00 | E28: =Generator!I41 -> 0.00 | G28: 0.0000
B29: Biphenyl | D29: ='Crusher Engine'!I42 -> 0.00 | E29: =Generator!I42 -> 0.00 | G29: 0.0000
B30: Carbon tetrachloride | D30: ='Crusher Engine'!I43 -> 0.00 | E30: =Generator!I43 -> 0.00 | G30: 0.0000
B31: Chlorobenzene | D31: ='Crusher Engine'!I44 -> 0.00 | E31: =Generator!I44 -> 0.00 | G31: 0.0000
B32: Chloroform | D32: ='Crusher Engine'!I45 -> 0.00 | E32: =Generator!I45 -> 0.00 | G32: 0.0000
B33: Ethylbenzene | D33: ='Crusher Engine'!I46 -> 0.00 | E33: =Generator!I46 -> 0.00 | G33: 0.0000
B34: Ethylene dibromide | D34: ='Crusher Engine'!I47 -> 0.00 | E34: =Generator!I47 -> 0.00 | G34: 0.0000
B35: Formaldehyde | D35: ='Crusher Engine'!I48 -> 0.00 | E35: =Generator!I48 -> 0.00 | G35: 0.0000
B36: Hexane | D36: ='Crusher Engine'!I49 -> 0.00 | E36: =Generator!I49 -> 0.00 | G36: 0.0000
B37: Methanol | D37: ='Crusher Engine'!I50 -> 0.00 | E37: =Generator!I50 -> 0.00 | G37: 0.0000
B38: Methylene chloride | D38: ='Crusher Engine'!I51 -> 0.00 | E38: =Generator!I51 -> 0.00 | G38: 0.0000
B39: Naphthalene | D39: ='Crusher Engine'!I52 -> 0.00 | E39: =Generator!I52 -> 0.00 | G39: 0.0000
B40: PAH | D40: ='Crusher Engine'!I53 -> 0.00 | E40: =Generator!I53 -> 0.00 | G40: 0.0000
B41: Phenol | D41: ='Crusher Engine'!I54 -> 0.00 | E41: =Generator!I54 -> 0.00 | G41: 0.0000
B42: Styrene | D42: ='Crusher Engine'!I55 -> 0.00 | E42: =Generator!I55 -> 0.00 | G42: 0.0000
B43: Tetrachloroethane | D43: ='Crusher Engine'!I56 -> 0.00 | E43: =Generator!I56 -> 0.00 | G43: 0.0000
B44: Toluene | D44: ='Crusher Engine'!I57 -> 0.00 | E44: =Generator!I57 -> 0.00 | G44: 0.0000
B45: Vinyl chloride | D45: ='Crusher Engine'!I58 -> 0.00 | E45: =Generator!I58 -> 0.00 | G45: 0.0000
B46: Xylene | D46: ='Crusher Engine'!I59 -> 0.00 | E46: =Generator!I59 -> 0.00 | G46: 0.0000
B47: HAP Indiv. Max | C47: =IF(G47=G22,B22,IF(G47=G23,B23,IF(G47=G24,B24,IF(G47=G25,B25,IF(G47=G26,B26,IF(G47=G27,B27,IF(G47=G28,B28,IF(G47=G29,B29,IF(G47=G30,B30,IF(G47=G31,B31,IF(G47=G32,B32,IF(G47=G33,B33,IF(G47=G34,B34,IF(G47=G35,B35,IF(G47=G36,B36,IF(G47=G37,B37,IF(G47=G38,B38,IF(G47=G39,B39,IF(G47=G40,B40,IF(G47=G41,B41,IF(G47=G42,B42,IF(G47=G43,B43,IF(G47=G44,B44,IF(G47=G45,B45,IF(G47=G46,B46))))))))))))))))))))))))) -> 1,1,2,2-tetrachloroethane | G47: =MAX(G22:G46) -> 0.0000 | H47: 5
B48: HAP total | G48: =SUM(G22:G46) -> 0.00 | H48: 12.5

Sheet Permits & requirements
B1: =Instructions!G2 -> p-sbap5-30 • 7/31/25
B2: Permits & requirements
B3: The need for a permit is based on your entire business' potential air emissions. All activities that put pollutants into the air (such as paint and solvent use that are not associated with maintenance) need to be assessed if they are not included in this calculator. Once you identify if you need a permit, based on whether an NSPS applies and potential emissions, you can then use your actual emissions to see which permit is the best fit for your business.
B6: Content below is based on the information entered into this calculator and is not an official MPCA permit determination.
B9: Is a permit required? | F9: What type of permit? Assumes all air pollutant activities are entered into this calculator. If you have additional air emission sources, the recommendation below cannot be used. You must assess your facility's total potential emissions from all sources to identify your permitting needs.
B10: The summary below is based on information you entered in the blue tabs.
B11: Your business's potential emissions | C11: Your business's actual emissions | D11: A federal NSPS | E11: A federal NESHAP
B13: =IF('Data validation'!C22="yes","do","do not") -> do not | C13: =IF('Data validation'!C25="yes","do","do not") -> do not | D13: =IF('Data validation'!C17>0,"Return to Federal tab and answer all Y/N questions",IF(AND('Data validation'!C17=0,'Data validation'!C12>0),"does","does not")) -> Return to Federal tab and answer all Y/N questions | E13: =IF('Federal standards'!N61="Choose Y/N","Return to Federal tab and answer all Y/N questions",IF('Federal standards'!N61="Yes","does",IF('Federal standards'!N61="No","does not"))) -> Return to Federal tab and answer all Y/N questions
B16: exceed permit thresholds | C16: exceed Option D limits | D16: apply to your business | E16: apply to your business
B18: Potential emissions exceed permit thresholds | C18: Actual emissions exceed Option D limits | D18: Federal NSPS applies?1 | E18: Federal NESHAP applies? | F18: Which permit do you need if your business does not qualify for the general permit? | H18: More Information | I18: Forms
B21: no | C21: n/a | D21: no | E21: Applicability of a NESHAP does not determine if a permit is required. | F21: Below permit thresholds | H21: n/a | I21: n/a
D22: yes | F22: Registration Option A | H22: Info about Air Registration Permits | I22: Application Forms, scroll to Registration section
B23: yes | C23: no | D23: no | F23: Registration Option D
D24: yes
B25: yes | C25: yes | D25: no | F25: Other state or federal permit | H25: Info about Air Permits | I25: Application Forms, scroll to Section 1
D26: yes
B27: 1 Applicability of NSPS IIII or JJJJ does not indicate a need for a permit if your engine did not rely on performance testing to demonstrate NSPS compliance and any compression ignition engines are less than 30 liters per cylinder. Applicability of NSPS Kb does not indicate a need for a permit if construction, reconstruction or modification commenced after July 23, 1984, if all storage vessels subject to Kb at the facility each have a capacity of 40 cubic meters to less than 75 cubic meters. | I27: Minn. R. 7007.0300
B32: Does your business qualify for the nonmetallic mineral general permit?
B33: If your business meets the qualifications for the general permit, you cannot obtain a registration permit. Use the checklist (NM-00), linked below, to see if your business qualifies for the general permit.
B35: NM-00: Qualifications Review Checklist – Nonmetallic Mineral Processing General Permit (aq-f4-nm00)
C36: See the application forms on the air permit and forms page – scroll down the webpage to #4. | E36: Be sure to complete and include Form SCP-01 with your application.
C39: Info about Individual Air Permits | E39: SCP-01: Submittal cover page (aq-f1-scp01)
B41: Types of insignificant activities | D41: Minn. R. 7007.1300
B42: subp. 2 | C42: Not required to be listed.
B43: supb. 3 | C43: Required to be listed but emissions do not need to be included in total facility emission calculations, unless requested by MPCA.
B44: subp. 4 | C44: Required to be listed if applying for a Part 70 (Federal permit or federally enforceable permit limits) but emissions do not need to be included in total facility emission calculations, unless requested by MPCA.
B46: If emissions units listed in 7007.1300 are subject to additional requirements under section 114(a)(3) of the act (Monitoring Requirements) or section 112 of the act (Hazardous Air Pollutants), or if part of a title I modification, or, if accounted for, make a stationary source subject to a part 70 permit, emissions from the emissions units must be calculated in the permit application.
B49: If all emission points are insignificant and total emissions do not exceed permitting thresholds, a permit is not required. Comply with any applicable regulations.
B51: Crusher engine and generator
B52: A stack height determination is required if:
B53: 1) Installing a non-emergency engine, including insignificant activities, OR
B54: 2) There are existing non-emergency engines installed after January 1, 2000, OR
B55: 3) Installing any permit-required engine, including emergency engines.
B57: Use the SCREEN3 program to enter engine and site-specific information to identify the necessary stack height for the engine.
B58: https://www.epa.gov/scram/air-quality-dispersion-modeling-screening-models#screen3
B59: See input requirements and instructions on modeling more than one engine on the MPCA Form EC-03.
B60: https://www.pca.state.mn.us/sites/default/files/aq-f1-ec03.doc
B62: MPCA Air permits page for engines | D62: https://www.pca.state.mn.us/air/engines

Sheet Aggregate emission factors
B1: =Instructions!G2 -> p-sbap5-30 • 7/31/25
B2: Emission factors for aggregate processing1
B4: Emission factors and calculated percent controls
B5: Activity | D5: Uncontrolled or Controlled Emission Factor | E5: PM Emission Factor | F5: PM Emission Control (calculated) | G5: PM10 Emission Factor | H5: PM10 Emission Control (calculated) | I5: PM2.5 Emission Factor | J5: PM2.5 Emission Control
E9: (lb/ton) | F9: (%) | G9: (lb/ton) | H9: (%) | I9: (lb/ton) | J9: (%)
B10: Crushing | C10: Primary1 | D10: Uncontrolled | E10: 0.0007 | G10: =E10 -> 0.0007 | I10: ND
D11: Controlled | E11: ND | G11: ND | I11: ND
C12: Secondary2 | D12: Uncontrolled | E12: 0.025 | G12: 0.0087 | I12: ND
D13: Controlled | E13: ND | G13: ND | I13: 5e-05
C14: Tertiary | D14: Uncontrolled | E14: 0.0054 | F14: =(E14-E15)/E14 -> 77.78% | G14: 0.0024 | H14: =(G14-G15)/G14 -> 77.50% | I14: ND
D15: Controlled | E15: 0.0012 | G15: 0.00054 | I15: 0.0001
C16: Fines | D16: Uncontrolled | E16: 0.039 | F16: =(E16-E17)/E16 -> 92.31% | G16: 0.015 | H16: =(G16-G17)/G16 -> 92.00% | I16: ND
D17: Controlled | E17: 0.003 | G17: 0.0012 | I17: 7e-05
B18: Screening | C18: Screening | D18: Uncontrolled | E18: 0.025 | F18: =(E18-E19)/E18 -> 91.20% | G18: 0.0087 | H18: =(G18-G19)/G18 -> 91.49% | I18: ND
D19: Controlled | E19: 0.0022 | G19: 0.00074 | I19: 5e-05
C20: Fines | D20: Uncontrolled | E20: 0.3 | F20: =(E20-E21)/E20 -> 98.80% | G20: 0.072 | H20: =(G20-G21)/G20 -> 96.94% | I20: ND
D21: Controlled | E21: 0.0036 | G21: 0.0022 | I21: ND
B22: Conveyor Transfer Points | D22: Uncontrolled | E22: 0.003 | F22: =(E22-E23)/E22 -> 95.33% | G22: 0.0011 | H22: =(G22-G23)/G22 -> 95.82% | I22: ND
D23: Controlled | E23: 0.00014 | G23: 4.6e-05 | I23: 1.3e-05
B24: 1Emission factors from AP-42, Chapter 11.19-2, unless otherwise stated. | G24: https://www3.epa.gov/ttn/chief/ap42/ch11/final/c11s1902.pdf
B25: 2WebFIRE SCC 3-05-020-01: EPA. 1995. Section 11.19.2, Construction Aggregate Processing: Crushed Stone Processing. In: Compilation of Air Pollutant Emission Factors, Volume 1: Stationary Point and Area Sources, Fifth Edition, AP-42. U.S. Environmental Protection Agency, Office of Air Quality Planning and Standards. Research Triangle Park, North Carolina. (Assume PM = PM-10)
B28: 3WebFIRE SCC 3-05-020-02: EPA. August, 2004. Section 11.19.2, Crushed Stone Processing and Pulverized Mineral Processing. In: Compilation of Air Pollutant Emission Factors, Volume 1: Stationary Point and Area Sources, Fifth Edition, AP-42. U.S. Environmental Protection Agency, Office of Air Quality Planning and Standards. Research Triangle Park, North Carolina.
B33: Uncontrolled PM-2.5 factors
B34: Activity | D34: PM2.5 Emission Factor | F34: Reference
D35: (reason) | E35: (lb/ton)
B36: Crushing | C36: Primary | D36: 1 | E36: =E38 -> 0.0005 | F36: 1 | G36: Emissions factor assumed, worst-case, to equal PM-2.5 of secondary crusher.
C37: Secondary | D37: 2 | E37: =I13*5 -> 0.00025
C38: Tertiary | D38: 2 | E38: =I15*5 -> 0.0005 | F38: 2 | G38: Back calculated from controlled emission factor using a conservative minimum percent emission control of 80%.
C39: Fines | D39: 2 | E39: =I17*5 -> 0.00035
B40: Screening | C40: Screening | D40: 2 | E40: =I19*5 -> 0.00025 | F40: 3 | G40: Emission factor assumed, worst-case, to be 10 times greater than uncontrolled screening PM-2.5 emission factor.
C41: Fines | D41: 3 | E41: =E40*10 -> 0.0025
B42: Conveyor Transfer Points | D42: 2 | E42: =I23*5 -> 6.5e-05

Sheet Engine emission factors
A1: =Instructions!G2 -> p-sbap5-30 • 7/31/25
A2: Engine emission factors
B3: RECIPROCATING ENGINES (<600HP) DIESEL (lb/MMBtu)1 | C3: RECIPROCATING ENGINES (>=600HP) DIESEL (lb/MMBtu)1 | D3: TURBINE ENGINES (electrical generation) NATURAL GAS (lb/MMBtu)1 | E3: RECIPROCATING GASOLINE (lb/MMBtu)2 | F3: RECIPROCATING Natural Gas 4-Stroke Rich-Burn (lb/MMBtu) | G3: RECIPROCATING Natural Gas 4-Stroke Lean-Burn (lb/MMBtu) | H3: RECIPROCATING Natural Gas 2-Stroke Lean-Burn (lb/MMBtu) | I3: RECIPROCATING Propane3,4,5 (lb/MMBtu)
A4: source | B4: AP42 Chpt 3.3 (10/96) | C4: AP42 Chpt 3.4 (10/96) | D4: AP42 Chpt 3.1 (4/00) | E4: AP42 Chpt 3.3 (10/96) | F4: AP42 Chpt 3.2-3 (7/00) | G4: AP42 Chpt 3.2-2 (7/00) | H4: AP42 Chpt 3.2-2 (7/00) | I4: EPA/AIRS by SCC3,4
A5: PM | B5: 0.31 | C5: 0.1 | D5: 0.0066 | E5: 0.1 | F5: =0.0095+0.00991 -> 0.01941 | G5: =0.0000771+0.00991 -> 0.0099871 | H5: =0.0384+0.00991 -> 0.04831 | I5: =I6 -> 0.0543
A6: PM10 | B6: 0.31 | C6: =0.0496+0.0077 -> 0.0573 | D6: =0.0019+0.0047 -> 0.0066 | E6: 0.1 | F6: =0.0095+0.00991 -> 0.01941 | G6: =G5 -> 0.0099871 | H6: =H5 -> 0.04831 | I6: =5/(H55/(10^6)*1000) -> 0.0543
A7: PM2.5 | B7: 0.31 | C7: =0.0479+0.0077 -> 0.0556 | D7: =D6 -> 0.0066 | E7: 0.1 | F7: =F6 -> 0.01941 | G7: =G5 -> 0.0099871 | H7: =H6 -> 0.04831 | I7: =I6 -> 0.0543
A8: SOx | B8: 1.01 | C8: 1.01 | D8: 0.94 | E8: 0.084 | F8: 0.000588 | G8: 0.000588 | H8: 0.000588 | I8: =(0.1)/(H55/(10^6)*1000) -> 0.00109
A9: NOx | B9: 4.41 | C9: 3.2 | D9: 0.32 | E9: 1.63 | F9: 2.21 | G9: 4.08 | H9: 3.17 | I9: =139/(H55/(10^6)*1000) -> 1.51
A10: VOC | B10: =0.35+0+0.01+0 -> 0.36 | C10: 0.09 | D10: 0.0021 | E10: =2.1+0.09+0.69+0.15 -> 3.03 | F10: 0.0296 | G10: 0.118 | H10: 0.12 | I10: =83/(H55/(10^6)*1000) -> 0.902
A11: CO | B11: 0.95 | C11: 0.85 | D11: 0.082 | E11: 0.99 | F11: 3.72 | G11: 0.317 | H11: 0.386 | I11: =129/(H55/(10^6)*1000) -> 1.40
A12: 40 CFR 98, subp. C, Table C-1 and C-2
A13: CO2 | B13: =B53 -> 163.05 | C13: =B53 -> 163.05 | D13: =B52 -> 116.98 | E13: =B54 -> 154.81 | F13: =B52 -> 116.98 | G13: =B52 -> 116.98 | H13: =G13 -> 117 | I13: =B55 -> 136.05
A14: CH4 | B14: =C53 -> 0.0066 | C14: =C53 -> 0.0066 | D14: =C52 -> 0.0022 | E14: =C54 -> 0.0066 | F14: =C52 -> 0.0022 | G14: =C52 -> 0.0022 | H14: =G14 -> 0.0022 | I14: =C55 -> 0.0066139
A15: N2O | B15: =D53 -> 0.0013 | C15: =D53 -> 0.0013 | D15: =D52 -> 0.0002 | E15: =D54 -> 0.0013 | F15: =D52 -> 0.0002 | G15: =D52 -> 0.0002 | H15: 0.0002 | I15: =D55 -> 0.0013
A16: source | B16: AP42 Chpt 3.3 (10/96) | C16: AP42 Chpt 3.4 (10/96) | D16: AP42 Chpt 3.1 (4/00) | E16: HAPs from Diesel<600HP | F16: AP42 Chpt 3.2-3 (7/00) | G16: AP42 Chpt 3.2-2 (7/00) | H16: AP42 Chpt 3.2-2 (7/00) | I16: Calculated5
A17: 1,1,2,2-tetrachloroethane | F17: 2.53e-05 | G17: 4e-05 | H17: 6.63e-05 | I17: =AVERAGE(F17:H17)*$G$52/$G$55 -> 0.0000178
A18: 1,1,2-trichloroethane | F18: 1.53e-05 | G18: 3.18e-05 | H18: 5.27e-05 | I18: =AVERAGE(F18:H18)*$G$52/$G$55 -> 0.0000135
A19: 1,3-butadiene | B19: 3.91e-05 | D19: 4.3e-07 | E19: 3.91e-05 | F19: 0.000663 | G19: 0.000267 | H19: 0.00082 | I19: 0.000236
A20: 1,3-dichloropropene | F20: 1.27e-05 | G20: 2.64e-05 | H20: 4.38e-05 | I20: 0.0000112
A21: Acetaldehyde | B21: 0.000767 | C21: 2.52e-05 | D21: 4e-05 | E21: =B21 -> 0.000767 | F21: 0.00279 | G21: 0.00836 | H21: 0.00776 | I21: 0.00256
A22: Acrolein | B22: 9.25e-05 | C22: 7.88e-06 | D22: 6.4e-06 | E22: =B22 -> 9.25e-05 | F22: 0.00263 | G22: 0.00514 | H22: 0.00778 | I22: 0.00210
A23: Benzene | B23: 0.000933 | C23: 0.000776 | D23: 1.2e-05 | E23: =B23 -> 0.000933 | F23: 0.00158 | G23: 0.00044 | H23: 0.00194 | I23: 0.000535
A24: Biphenyl | G24: 0.000212 | H24: 3.95e-06 | I24: 0.0000438
A25: Carbon tetrachloride | F25: 1.77e-05 | G25: 3.67e-05 | H25: 6.07e-05 | I25: 0.0000156
A26: Chlorobenzene | F26: 1.29e-05 | G26: 3.04e-05 | H26: 4.44e-05 | I26: 0.0000119
A27: Chloroform | F27: 1.37e-05 | G27: 2.85e-05 | H27: 4.71e-05 | I27: 0.0000121
A28: Ethylbenzene | D28: 3.2e-05 | F28: 2.48e-05 | G28: 3.97e-05 | H28: 0.000108 | I28: 0.0000233
A29: Ethylene dibromide | F29: 2.13e-05 | G29: 4.43e-05 | H29: 7.34e-05 | I29: 0.0000188
A30: Formaldehyde | B30: 0.00118 | C30: 7.89e-05 | D30: 0.00071 | E30: =B30 -> 0.00118 | F30: 0.0205 | G30: 0.0528 | H30: 0.0552 | I30: 0.0174
A31: Hexane | G31: 0.00111 | H31: 0.000445 | I31: 0.000315
A32: Methanol | F32: 0.00306 | G32: 0.0025 | H32: 0.00248 | I32: 0.00109
A33: Methylene chloride | F33: 4.12e-05 | G33: 2e-05 | H33: 0.000147 | I33: 0.0000281
A34: Naphthalene | B34: 8.48e-05 | C34: 0.00013 | D34: 1.3e-06 | E34: =B34 -> 8.48e-05 | F34: 9.71e-05 | G34: 7.44e-05 | H34: 9.63e-05 | I34: 0.0000362
A35: PAH | B35: 0.000168 | C35: 0.000212 | D35: 2.2e-06 | E35: 0.000168 | F35: 0.000141 | G35: 2.69e-05 | H35: 0.000134 | I35: 0.0000408
A36: Phenol | G36: 2.4e-05 | H36: 4.21e-05 | I36: 0.0000134
A37: Styrene | F37: 1.19e-05 | G37: 2.36e-05 | H37: 5.48e-05 | I37: 0.0000122
A38: Tetrachloroethane | G38: 2.48e-06 | I38: 0.00000101
A39: Toluene | B39: 0.000409 | C39: 0.000281 | D39: 0.00013 | E39: =B39 -> 0.000409 | F39: 0.000558 | G39: 0.000408 | H39: 0.000963 | I39: 0.000261
A40: Vinyl chloride | F40: 7.18e-06 | G40: 1.49e-05 | H40: 2.47e-05 | I40: 0.00000632
A41: Xylene | B41: 0.000285 | C41: 0.000193 | D41: 6.4e-05 | E41: =B41 -> 0.000285 | F41: 0.000195 | G41: 0.000184 | H41: 0.000268 | I41: 0.0000874
A42: 1 | B42: SOx emission factor given is multiplied by the sulfur content in the fuel (in percent) in the Engine (n) tabs.
A43: 2 | B43: All particulate is assumed to be less than or equal to 1 micrometer in size.
A44: 3 | B44: Propane criteria emission factors ARB "Instructions for the Emission Data System Review & Update Report 8/91" referencing EPA/AIRS emission factors by source classification code.
A45: 4 | B45: SOx emission factor from AP-42 Section 1.5 Table 1.5-1 for propane. The SO2 emission factor is based on fuel sulfur content as 0.10S lb/1000 gal, where S is sulfur content of fuel in gr/100ft3. National average sulfur content
B46: of propane 0.54 gr/100ft3 | C46: https://www3.epa.gov/ttnchie1/conference/ei12/area/haneke.pdf
A47: 5 | B47: Propane toxic emission factors were calculated from the natural gas toxic emission factors using the following formula: TEFP = TEFNG * HVP/HVNG
B48: TEFP = Propane toxic emission factor; TEFNG = Average of natural gas toxic emission factors; HVP = Heating value for propane; HVNG = Heating value for natural gas
A51: Fuel | B51: CO2 Emission Factor1 (lbs/million BTU) | C51: CH4 Emission Factor1 (lbs/million BTU) | D51: N2O Emission Factor1 (lbs/million BTU) | E51: Source for Emission Factors | F51: Brake-specific fuel consumption (btu/hp*hr)2 | G51: Heat value3 (Btu/scf) | H51: Heat Value3 (Btu/gal)
A52: NATURAL GAS | B52: =53.06/0.453592 -> 116.9773717 | C52: =0.001/0.453592 -> 2.20E-03 | D52: =0.0001/0.453592 -> 2.20E-04 | E52: 40 CFR 98, subp. C, Table C-1 and C-2 | G52: 1020
A53: DISTILLATE OIL 2 | B53: =73.96/0.453592 -> 163.0540221 | C53: =0.003/0.453592 -> 6.61E-03 | D53: =0.0006/0.453592 -> 1.32E-03 | E53: 40 CFR 98, subp. C, Table C-1 and C-2 | F53: 7000 | H53: =0.138*1000000 -> 138000
A54: GASOLINE | B54: =70.22/0.453592 -> 154.8087268 | C54: =C53 -> 6.61E-03 | D54: =D53 -> 1.32E-03 | E54: 40 CFR 98, subp. C, Table C-1 and C-2 | F54: 7000 | H54: 125000
A55: PROPANE | B55: =61.71/0.453592 -> 136.047373 | C55: =C53 -> 6.61E-03 | D55: =D53 -> 1.32E-03 | E55: 40 CFR 98, subp. C, Table C-1 and C-2 | G55: 2516 | H55: =0.092*1000000 -> 92000
A56: 1 | B56: (1 lb = 0.453592 kg)
A57: 2 | B57: An average brake-specific fuel consumption of 7,000 Btu/hp-hr was assumed to convert from lb/MMBtu to lb/hp-hr (see AP42 Chpt 3.3).
B58: 7000 btu/hp*hr x GHG EF (lb/E6BTU)= lb GHG/hp*hr
A59: 3 | B59: Source: 40 CFR 98, Subp. C, Table C-1 and C-2

Sheet Data validation (hidden)
A1: =Instructions!G2 -> p-sbap5-30 • 7/31/25
A2: Data Validation
A4: Engines | C4: General data
A5: Engine and Fuel Type | B5: Choose one to calculate actual emissions | C5: Selection
A6: Choose one | B6: Number of hours operated per 12 months | C6: Choose Y/N
A7: Reciprocating - diesel | B7: Quantity of fuel actually burned per 12 months | C7: Yes
A8: Reciprocating - gasoline | C8: No
A9: Reciprocating - propane
A10: Turbine - natural gas | B10: Actual emissions entry | C10: Equation/reference
A11: Recip - nat gas 4-stroke rich burn | B11: hours per year (hr/yr) | C11: NSPS applies
A12: Recip - nat gas 4-stroke lean burn | B12: million Btu per year (MMBtu/yr) | C12: =SUM(C13:C14) -> 0
A13: Recip - nat gas 2-stroke lean burn | B13: gallons per year (gal/yr) | C13: =COUNTIF('Federal standards'!N16,"Yes") -> 0
C14: =COUNTIF('Federal standards'!N48,"Yes") -> 0
A16: Engine Use | C16: NSPS no selection
A17: Choose one | C17: =SUM(C18:C19) -> 2
A18: Routine | C18: =IF('Federal standards'!N16="Choose Y/N",1,0) -> 1
A19: Emergency | C19: =IF('Federal standards'!N48="Choose Y/N",1,0) -> 1
C21: Potential exceed
A22: Input Value | C22: =IF(OR('Potential emissions'!G8>=100,OR('Potential emissions'!G9>=25,OR('Potential emissions'!G10>=100,OR('Potential emissions'!G11>=50,OR('Potential emissions'!G12>=100,OR('Potential emissions'!G13>=100,OR('Potential emissions'!G14>=100,OR('Potential emissions'!G15>=0.5,OR('Potential emissions'!G20>=100000,OR('Potential emissions'!G47>=10,'Potential emissions'!G48>=25)))))))))),"yes","no") -> no
A23: Choose one
A24: horsepower(HP) or brake power (HP-hr) | C24: Actual exceed
A25: standard cubic feet/hr (scf/hr) | C25: =IF(OR('Actual emissions'!G8>=50,OR('Actual emissions'!G9>=50,OR('Actual emissions'!G10>=50,OR('Actual emissions'!G11>=50,OR('Actual emissions'!G12>=50,OR('Actual emissions'!G13>=50,OR('Actual emissions'!G14>=50,OR('Actual emissions'!G15>=0.5,OR('Actual emissions'!G20>=50000,OR('Actual emissions'!G47>=5,'Actual emissions'!G48>=12.5)))))))))),"yes","no") -> no
A26: gallons/hr (gal/hr)
A28: Fuel Conversion
A29: Brake specific fuel consumption
A30: Heat value of fuel
A46: Updates:
A47: 11/01/2019: formula for actual emissions
